{"text_format":"1","workbook":"xlsx","n_sheets":24,"sheets":["Quadro 1","Quadro 2","Quadro 3","Quadro 4","Quadro 5","Quadro 6","Quadro 7","Quadro 8","Quadro 9","Quadro 10","Quadro 11","Quadro 12","Quadro 13","Quadro 14","Quadro 14.1","Quadro 15","Quadro 16","Quadro 17","Quadro 18","Quadro 27","Quadro 28","Quadro 29","Quadro 30","Quadro 31"],"not_rendered":{"charts":0,"images":0,"macros":1,"external_links":0,"defined_names":0,"comments":0,"pivot_tables":0},"unopened":[],"bounds":{"document_bytes":16777216,"sheet_cells":100000,"rows_first":2000,"rows_last":500,"rows_between":2000,"halvings":0,"cell_chars":16384,"cell_head_chars":4096},"cells_cut":0,"cells_raw":0,"read":"whole","date_system":"1900"}

{"sheet":"Quadro 1","index":0,"n_rows":26,"n_cols":28,"rows_kept":26,"cut":false,"hidden":false,"merged":[[3,27,4,27],[0,0,0,27],[1,0,1,27],[3,0,4,0],[3,1,3,2],[3,3,3,4],[3,5,3,6],[3,7,3,8],[3,9,3,10],[3,11,3,12],[3,13,3,14],[3,15,3,16],[3,17,3,18],[3,19,3,20],[3,21,3,22],[3,23,3,24],[3,25,3,26]]}
["Balanço social 2025","Balanço social 2025","Balanço social 2025","Balanço social 2025","Balanço social 2025","Balanço social 2025","Balanço social 2025","Balanço social 2025","Balanço social 2025","Balanço social 2025","Balanço social 2025","Balanço social 2025","Balanço social 2025","Balanço social 2025","Balanço social 2025","Balanço social 2025","Balanço social 2025","Balanço social 2025","Balanço social 2025","Balanço social 2025","Balanço social 2025","Balanço social 2025","Balanço social 2025","Balanço social 2025","Balanço social 2025","Balanço social 2025","Balanço social 2025","Balanço social 2025"]
["Quadro 1: Contagem dos trabalhadores por grupo/cargo/carreira, segundo a modalidade de vinculação e género","Quadro 1: Contagem dos trabalhadores por grupo/cargo/carreira, segundo a modalidade de vinculação e género","Quadro 1: Contagem dos trabalhadores por grupo/cargo/carreira, segundo a modalidade de vinculação e género","Quadro 1: Contagem dos trabalhadores por grupo/cargo/carreira, segundo a modalidade de vinculação e género","Quadro 1: Contagem dos trabalhadores por grupo/cargo/carreira, segundo a modalidade de vinculação e género","Quadro 1: Contagem dos trabalhadores por grupo/cargo/carreira, segundo a modalidade de vinculação e género","Quadro 1: Contagem dos trabalhadores por grupo/cargo/carreira, segundo a modalidade de vinculação e género","Quadro 1: Contagem dos trabalhadores por grupo/cargo/carreira, segundo a modalidade de vinculação e género","Quadro 1: Contagem dos trabalhadores por grupo/cargo/carreira, segundo a modalidade de vinculação e género","Quadro 1: Contagem dos trabalhadores por grupo/cargo/carreira, segundo a modalidade de vinculação e género","Quadro 1: Contagem dos trabalhadores por grupo/cargo/carreira, segundo a modalidade de vinculação e género","Quadro 1: Contagem dos trabalhadores por grupo/cargo/carreira, segundo a modalidade de vinculação e género","Quadro 1: Contagem dos trabalhadores por grupo/cargo/carreira, segundo a modalidade de vinculação e género","Quadro 1: Contagem dos trabalhadores por grupo/cargo/carreira, segundo a modalidade de vinculação e género","Quadro 1: Contagem dos trabalhadores por grupo/cargo/carreira, segundo a modalidade de vinculação e género","Quadro 1: Contagem dos trabalhadores por grupo/cargo/carreira, segundo a modalidade de vinculação e género","Quadro 1: Contagem dos trabalhadores por grupo/cargo/carreira, segundo a modalidade de vinculação e género","Quadro 1: Contagem dos trabalhadores por grupo/cargo/carreira, segundo a modalidade de vinculação e género","Quadro 1: Contagem dos trabalhadores por grupo/cargo/carreira, segundo a modalidade de vinculação e género","Quadro 1: Contagem dos trabalhadores por grupo/cargo/carreira, segundo a modalidade de vinculação e género","Quadro 1: Contagem dos trabalhadores por grupo/cargo/carreira, segundo a modalidade de vinculação e género","Quadro 1: Contagem dos trabalhadores por grupo/cargo/carreira, segundo a modalidade de vinculação e género","Quadro 1: Contagem dos trabalhadores por grupo/cargo/carreira, segundo a modalidade de vinculação e género","Quadro 1: Contagem dos trabalhadores por grupo/cargo/carreira, segundo a modalidade de vinculação e género","Quadro 1: Contagem dos trabalhadores por grupo/cargo/carreira, segundo a modalidade de vinculação e género","Quadro 1: Contagem dos trabalhadores por grupo/cargo/carreira, segundo a modalidade de vinculação e género","Quadro 1: Contagem dos trabalhadores por grupo/cargo/carreira, segundo a modalidade de vinculação e género","Quadro 1: Contagem dos trabalhadores por grupo/cargo/carreira, segundo a modalidade de vinculação e género"]
[]
["Grupo/Cargo/Carreira","Cargo Político / Mandato","Cargo Político / Mandato","Nomeação Definitiva","Nomeação Definitiva","Nomeação Transitória por tempo determinado","Nomeação Transitória por tempo determinado","Nomeação Transitória por tempo determinável","Nomeação Transitória por tempo determinável","CT em Funções Públicas por tempo indeterminado","CT em Funções Públicas por tempo indeterminado","CT em Funções Públicas a termo resolutivo certo","CT em Funções Públicas a termo resolutivo certo","CT em Funções Públicas a termo resolutivo incerto","CT em Funções Públicas a termo resolutivo incerto","Comissão de Serviço no âmbito da LTFP","Comissão de Serviço no âmbito da LTFP","CT no âmbito do Código do Trabalho por tempo indeterminado","CT no âmbito do Código do Trabalho por tempo indeterminado","CT no âmbito do Código do Trabalho a termo (certo ou incerto)","CT no âmbito do Código do Trabalho a termo (certo ou incerto)","Comissão de Serviço no âmbito do Código do Trabalho","Comissão de Serviço no âmbito do Código do Trabalho","Trabalhador activo sem correspondência","Trabalhador activo sem correspondência","Total","Total","Total"]
["Grupo/Cargo/Carreira","M","F","M","F","M","F","M","F","M","F","M","F","M","F","M","F","M","F","M","F","M","F","M","F","M","F","Total"]
["Pessoal Dirigente",0,0,0,0,0,0,0,0,0,0,0,0,0,0,0,2,0,0,0,0,0,0,0,0,0,2,2]
["Dirigente superior de 2º grau",0,0,0,0,0,0,0,0,0,0,0,0,0,0,0,0,0,0,0,0,0,0,0,0,0,0,0]
["Dirigente intermédio de 1º grau",0,0,0,0,0,0,0,0,0,0,0,0,0,0,0,0,0,0,0,0,0,0,0,0,0,0,0]
["Dirigente intermédio de 2º grau",0,0,0,0,0,0,0,0,0,0,0,0,0,0,0,0,0,0,0,0,0,0,0,0,0,0,0]
["Dirigente intermédio de 3º grau e seguintes",0,0,0,0,0,0,0,0,0,0,0,0,0,0,0,0,0,0,0,0,0,0,0,0,0,0,0]
["Técnico Superior",0,0,0,0,0,0,0,0,0,1,0,0,0,0,0,0,0,0,0,0,0,0,0,0,0,1,1]
["Assistente técnico, técnico de nível intermédio, pessoal administrativo",0,0,0,0,0,0,0,0,0,1,0,0,0,0,0,0,0,0,0,0,0,0,0,0,0,1,1]
["Assistente operacional, operário, auxiliar",0,0,0,0,0,0,0,0,0,0,0,0,0,0,0,0,0,0,0,0,0,0,0,0,0,0,0]
["Informático",0,0,0,0,0,0,0,0,0,0,0,0,0,0,0,0,0,0,0,0,0,0,0,0,0,0,0]
["Pessoal de Inspecção",0,0,3,2,0,0,0,0,0,1,0,0,0,0,0,0,0,0,0,0,0,0,0,0,3,3,6]
["Educ.Infância e Doc. do Ens. Básico e Secundário",0,0,0,0,0,0,0,0,0,0,0,0,0,0,0,0,0,0,0,0,0,0,0,0,0,0,0]
["Médico",0,0,0,0,0,0,0,0,0,0,0,0,0,0,0,0,0,0,0,0,0,0,0,0,0,0,0]
["Enfermeiro",0,0,0,0,0,0,0,0,0,0,0,0,0,0,0,0,0,0,0,0,0,0,0,0,0,0,0]
["Téc. Diagnóstico e Terapêutica",0,0,0,0,0,0,0,0,0,0,0,0,0,0,0,0,0,0,0,0,0,0,0,0,0,0,0]
["Técnico Superior de Saúde",0,0,0,0,0,0,0,0,0,0,0,0,0,0,0,0,0,0,0,0,0,0,0,0,0,0,0]
[null,{"$f":"SUBTOTAL(109,$B$6:$B$20)","v":0},{"$f":"SUBTOTAL(109,$C$6:$C$20)","v":0},{"$f":"SUBTOTAL(109,$D$6:$D$20)","v":3},{"$f":"SUBTOTAL(109,$E$6:$E$20)","v":2},{"$f":"SUBTOTAL(109,$F$6:$F$20)","v":0},{"$f":"SUBTOTAL(109,$G$6:$G$20)","v":0},{"$f":"SUBTOTAL(109,$H$6:$H$20)","v":0},{"$f":"SUBTOTAL(109,$I$6:$I$20)","v":0},{"$f":"SUBTOTAL(109,$J$6:$J$20)","v":0},{"$f":"SUBTOTAL(109,$K$6:$K$20)","v":3},{"$f":"SUBTOTAL(109,$L$6:$L$20)","v":0},{"$f":"SUBTOTAL(109,$M$6:$M$20)","v":0},{"$f":"SUBTOTAL(109,$N$6:$N$20)","v":0},{"$f":"SUBTOTAL(109,$O$6:$O$20)","v":0},{"$f":"SUBTOTAL(109,$P$6:$P$20)","v":0},{"$f":"SUBTOTAL(109,$Q$6:$Q$20)","v":2},{"$f":"SUBTOTAL(109,$R$6:$R$20)","v":0},{"$f":"SUBTOTAL(109,$S$6:$S$20)","v":0},{"$f":"SUBTOTAL(109,$T$6:$T$20)","v":0},{"$f":"SUBTOTAL(109,$U$6:$U$20)","v":0},{"$f":"SUBTOTAL(109,$V$6:$V$20)","v":0},{"$f":"SUBTOTAL(109,$W$6:$W$20)","v":0},{"$f":"SUBTOTAL(109,$X$6:$X$20)","v":0},{"$f":"SUBTOTAL(109,$Y$6:$Y$20)","v":0},{"$f":"SUBTOTAL(109,$Z$6:$Z$20)","v":3},{"$f":"SUBTOTAL(109,$AA$6:$AA$20)","v":7},{"$f":"SUBTOTAL(109,$AB$6:$AB$20)","v":10}]
[]
["Prestações de serviços","M","F","Total"]
["Tarefa",0,0,0]
["Avença",1,0,1]
[null,{"$f":"SUBTOTAL(109,$B$24:$B$25)","v":1},{"$f":"SUBTOTAL(109,$C$24:$C$25)","v":0},{"$f":"SUBTOTAL(109,$D$24:$D$25)","v":1}]

{"sheet":"Quadro 2","index":1,"n_rows":27,"n_cols":28,"rows_kept":27,"cut":false,"hidden":false,"merged":[[3,27,4,27],[22,0,23,0],[22,1,22,2],[22,3,22,4],[22,5,22,6],[22,7,22,8],[22,9,22,10],[22,11,22,12],[22,13,22,14],[22,15,22,16],[22,17,22,18],[22,19,22,20],[22,21,22,22],[22,23,22,24],[22,25,22,26],[22,27,23,27],[0,0,0,27],[1,0,1,27],[3,0,4,0],[3,1,3,2],[3,3,3,4],[3,5,3,6],[3,7,3,8],[3,9,3,10],[3,11,3,12],[3,13,3,14],[3,15,3,16],[3,17,3,18],[3,19,3,20],[3,21,3,22],[3,23,3,24],[3,25,3,26]]}
["Balanço social 2025","Balanço social 2025","Balanço social 2025","Balanço social 2025","Balanço social 2025","Balanço social 2025","Balanço social 2025","Balanço social 2025","Balanço social 2025","Balanço social 2025","Balanço social 2025","Balanço social 2025","Balanço social 2025","Balanço social 2025","Balanço social 2025","Balanço social 2025","Balanço social 2025","Balanço social 2025","Balanço social 2025","Balanço social 2025","Balanço social 2025","Balanço social 2025","Balanço social 2025","Balanço social 2025","Balanço social 2025","Balanço social 2025","Balanço social 2025","Balanço social 2025"]
["Quadro 2: Contagem dos trabalhadores por grupo/cargo/carreira, segundo o escalão etário e género","Quadro 2: Contagem dos trabalhadores por grupo/cargo/carreira, segundo o escalão etário e género","Quadro 2: Contagem dos trabalhadores por grupo/cargo/carreira, segundo o escalão etário e género","Quadro 2: Contagem dos trabalhadores por grupo/cargo/carreira, segundo o escalão etário e género","Quadro 2: Contagem dos trabalhadores por grupo/cargo/carreira, segundo o escalão etário e género","Quadro 2: Contagem dos trabalhadores por grupo/cargo/carreira, segundo o escalão etário e género","Quadro 2: Contagem dos trabalhadores por grupo/cargo/carreira, segundo o escalão etário e género","Quadro 2: Contagem dos trabalhadores por grupo/cargo/carreira, segundo o escalão etário e género","Quadro 2: Contagem dos trabalhadores por grupo/cargo/carreira, segundo o escalão etário e género","Quadro 2: Contagem dos trabalhadores por grupo/cargo/carreira, segundo o escalão etário e género","Quadro 2: Contagem dos trabalhadores por grupo/cargo/carreira, segundo o escalão etário e género","Quadro 2: Contagem dos trabalhadores por grupo/cargo/carreira, segundo o escalão etário e género","Quadro 2: Contagem dos trabalhadores por grupo/cargo/carreira, segundo o escalão etário e género","Quadro 2: Contagem dos trabalhadores por grupo/cargo/carreira, segundo o escalão etário e género","Quadro 2: Contagem dos trabalhadores por grupo/cargo/carreira, segundo o escalão etário e género","Quadro 2: Contagem dos trabalhadores por grupo/cargo/carreira, segundo o escalão etário e género","Quadro 2: Contagem dos trabalhadores por grupo/cargo/carreira, segundo o escalão etário e género","Quadro 2: Contagem dos trabalhadores por grupo/cargo/carreira, segundo o escalão etário e género","Quadro 2: Contagem dos trabalhadores por grupo/cargo/carreira, segundo o escalão etário e género","Quadro 2: Contagem dos trabalhadores por grupo/cargo/carreira, segundo o escalão etário e género","Quadro 2: Contagem dos trabalhadores por grupo/cargo/carreira, segundo o escalão etário e género","Quadro 2: Contagem dos trabalhadores por grupo/cargo/carreira, segundo o escalão etário e género","Quadro 2: Contagem dos trabalhadores por grupo/cargo/carreira, segundo o escalão etário e género","Quadro 2: Contagem dos trabalhadores por grupo/cargo/carreira, segundo o escalão etário e género","Quadro 2: Contagem dos trabalhadores por grupo/cargo/carreira, segundo o escalão etário e género","Quadro 2: Contagem dos trabalhadores por grupo/cargo/carreira, segundo o escalão etário e género","Quadro 2: Contagem dos trabalhadores por grupo/cargo/carreira, segundo o escalão etário e género","Quadro 2: Contagem dos trabalhadores por grupo/cargo/carreira, segundo o escalão etário e género"]
[]
["Grupo/Cargo/Carreira","Menos que 20 anos","Menos que 20 anos","20-24","20-24","25-29","25-29","30-34","30-34","35-39","35-39","40-44","40-44","45-49","45-49","50-54","50-54","55-59","55-59","60-64","60-64","65-69","65-69","maior ou igual a 70 anos","maior ou igual a 70 anos","Total","Total","Total"]
["Grupo/Cargo/Carreira","M","F","M","F","M","F","M","F","M","F","M","F","M","F","M","F","M","F","M","F","M","F","M","F","M","F","Total"]
["Pessoal Dirigente",0,0,0,0,0,0,0,0,0,0,0,0,0,0,0,1,0,0,0,1,0,0,0,0,0,2,2]
["Dirigente superior de 2º grau",0,0,0,0,0,0,0,0,0,0,0,0,0,0,0,0,0,0,0,0,0,0,0,0,0,0,0]
["Dirigente intermédio de 1º grau",0,0,0,0,0,0,0,0,0,0,0,0,0,0,0,0,0,0,0,0,0,0,0,0,0,0,0]
["Dirigente intermédio de 2º grau",0,0,0,0,0,0,0,0,0,0,0,0,0,0,0,0,0,0,0,0,0,0,0,0,0,0,0]
["Dirigente intermédio de 3º grau e seguintes",0,0,0,0,0,0,0,0,0,0,0,0,0,0,0,0,0,0,0,0,0,0,0,0,0,0,0]
["Técnico Superior",0,0,0,0,0,0,0,0,0,0,0,0,0,0,0,0,0,1,0,0,0,0,0,0,0,1,1]
["Assistente técnico, técnico de nível intermédio, pessoal administrativo",0,0,0,0,0,0,0,0,0,0,0,0,0,0,0,1,0,0,0,0,0,0,0,0,0,1,1]
["Assistente operacional, operário, auxiliar",0,0,0,0,0,0,0,0,0,0,0,0,0,0,0,0,0,0,0,0,0,0,0,0,0,0,0]
["Informático",0,0,0,0,0,0,0,0,0,0,0,0,0,0,0,0,0,0,0,0,0,0,0,0,0,0,0]
["Pessoal de Inspecção",0,0,0,0,0,1,0,2,1,0,1,0,1,0,0,0,0,0,0,0,0,0,0,0,3,3,6]
["Educ.Infância e Doc. do Ens. Básico e Secundário",0,0,0,0,0,0,0,0,0,0,0,0,0,0,0,0,0,0,0,0,0,0,0,0,0,0,0]
["Médico",0,0,0,0,0,0,0,0,0,0,0,0,0,0,0,0,0,0,0,0,0,0,0,0,0,0,0]
["Enfermeiro",0,0,0,0,0,0,0,0,0,0,0,0,0,0,0,0,0,0,0,0,0,0,0,0,0,0,0]
["Téc. Diagnóstico e Terapêutica",0,0,0,0,0,0,0,0,0,0,0,0,0,0,0,0,0,0,0,0,0,0,0,0,0,0,0]
["Técnico Superior de Saúde",0,0,0,0,0,0,0,0,0,0,0,0,0,0,0,0,0,0,0,0,0,0,0,0,0,0,0]
[null,{"$f":"SUBTOTAL(109,$B$6:$B$20)","v":0},{"$f":"SUBTOTAL(109,$C$6:$C$20)","v":0},{"$f":"SUBTOTAL(109,$D$6:$D$20)","v":0},{"$f":"SUBTOTAL(109,$E$6:$E$20)","v":0},{"$f":"SUBTOTAL(109,$F$6:$F$20)","v":0},{"$f":"SUBTOTAL(109,$G$6:$G$20)","v":1},{"$f":"SUBTOTAL(109,$H$6:$H$20)","v":0},{"$f":"SUBTOTAL(109,$I$6:$I$20)","v":2},{"$f":"SUBTOTAL(109,$J$6:$J$20)","v":1},{"$f":"SUBTOTAL(109,$K$6:$K$20)","v":0},{"$f":"SUBTOTAL(109,$L$6:$L$20)","v":1},{"$f":"SUBTOTAL(109,$M$6:$M$20)","v":0},{"$f":"SUBTOTAL(109,$N$6:$N$20)","v":1},{"$f":"SUBTOTAL(109,$O$6:$O$20)","v":0},{"$f":"SUBTOTAL(109,$P$6:$P$20)","v":0},{"$f":"SUBTOTAL(109,$Q$6:$Q$20)","v":2},{"$f":"SUBTOTAL(109,$R$6:$R$20)","v":0},{"$f":"SUBTOTAL(109,$S$6:$S$20)","v":1},{"$f":"SUBTOTAL(109,$T$6:$T$20)","v":0},{"$f":"SUBTOTAL(109,$U$6:$U$20)","v":1},{"$f":"SUBTOTAL(109,$V$6:$V$20)","v":0},{"$f":"SUBTOTAL(109,$W$6:$W$20)","v":0},{"$f":"SUBTOTAL(109,$X$6:$X$20)","v":0},{"$f":"SUBTOTAL(109,$Y$6:$Y$20)","v":0},{"$f":"SUBTOTAL(109,$Z$6:$Z$20)","v":3},{"$f":"SUBTOTAL(109,$AA$6:$AA$20)","v":7},{"$f":"SUBTOTAL(109,$AB$6:$AB$20)","v":10}]
[]
["Prestações de serviços","Menos que 20 anos","Menos que 20 anos","20-24","20-24","25-29","25-29","30-34","30-34","35-39","35-39","40-44","40-44","45-49","45-49","50-54","50-54","55-59","55-59","60-64","60-64","65-69","65-69","maior ou igual a 70 anos","maior ou igual a 70 anos","Total","Total","Total"]
["Prestações de serviços","M","F","M","F","M","F","M","F","M","F","M","F","M","F","M","F","M","F","M","F","M","F","M","F","M","F","Total"]
["Tarefa",0,0,0,0,0,0,0,0,0,0,0,0,0,0,0,0,0,0,0,0,0,0,0,0,0,0,0]
["Avença",0,0,0,0,0,0,0,0,0,0,0,0,0,0,1,0,0,0,0,0,0,0,0,0,1,0,1]
[null,{"$f":"SUBTOTAL(109,$B$25:$B$26)","v":0},{"$f":"SUBTOTAL(109,$C$25:$C$26)","v":0},{"$f":"SUBTOTAL(109,$D$25:$D$26)","v":0},{"$f":"SUBTOTAL(109,$E$25:$E$26)","v":0},{"$f":"SUBTOTAL(109,$F$25:$F$26)","v":0},{"$f":"SUBTOTAL(109,$G$25:$G$26)","v":0},{"$f":"SUBTOTAL(109,$H$25:$H$26)","v":0},{"$f":"SUBTOTAL(109,$I$25:$I$26)","v":0},{"$f":"SUBTOTAL(109,$J$25:$J$26)","v":0},{"$f":"SUBTOTAL(109,$K$25:$K$26)","v":0},{"$f":"SUBTOTAL(109,$L$25:$L$26)","v":0},{"$f":"SUBTOTAL(109,$M$25:$M$26)","v":0},{"$f":"SUBTOTAL(109,$N$25:$N$26)","v":0},{"$f":"SUBTOTAL(109,$O$25:$O$26)","v":0},{"$f":"SUBTOTAL(109,$P$25:$P$26)","v":1},{"$f":"SUBTOTAL(109,$Q$25:$Q$26)","v":0},{"$f":"SUBTOTAL(109,$R$25:$R$26)","v":0},{"$f":"SUBTOTAL(109,$S$25:$S$26)","v":0},{"$f":"SUBTOTAL(109,$T$25:$T$26)","v":0},{"$f":"SUBTOTAL(109,$U$25:$U$26)","v":0},{"$f":"SUBTOTAL(109,$V$25:$V$26)","v":0},{"$f":"SUBTOTAL(109,$W$25:$W$26)","v":0},{"$f":"SUBTOTAL(109,$X$25:$X$26)","v":0},{"$f":"SUBTOTAL(109,$Y$25:$Y$26)","v":0},{"$f":"SUBTOTAL(109,$Z$25:$Z$26)","v":1},{"$f":"SUBTOTAL(109,$AA$25:$AA$26)","v":0},{"$f":"SUBTOTAL(109,$AB$25:$AB$26)","v":1}]

{"sheet":"Quadro 3","index":2,"n_rows":21,"n_cols":22,"rows_kept":21,"cut":false,"hidden":false,"merged":[[0,0,0,21],[1,0,1,21],[3,0,4,0],[3,1,3,2],[3,3,3,4],[3,5,3,6],[3,7,3,8],[3,9,3,10],[3,11,3,12],[3,13,3,14],[3,15,3,16],[3,17,3,18],[3,19,3,20],[3,21,4,21]]}
["Balanço social 2025","Balanço social 2025","Balanço social 2025","Balanço social 2025","Balanço social 2025","Balanço social 2025","Balanço social 2025","Balanço social 2025","Balanço social 2025","Balanço social 2025","Balanço social 2025","Balanço social 2025","Balanço social 2025","Balanço social 2025","Balanço social 2025","Balanço social 2025","Balanço social 2025","Balanço social 2025","Balanço social 2025","Balanço social 2025","Balanço social 2025","Balanço social 2025"]
["Quadro 3: Contagem dos trabalhadores por grupo/cargo/carreira, segundo o nível de antiguidade e género","Quadro 3: Contagem dos trabalhadores por grupo/cargo/carreira, segundo o nível de antiguidade e género","Quadro 3: Contagem dos trabalhadores por grupo/cargo/carreira, segundo o nível de antiguidade e género","Quadro 3: Contagem dos trabalhadores por grupo/cargo/carreira, segundo o nível de antiguidade e género","Quadro 3: Contagem dos trabalhadores por grupo/cargo/carreira, segundo o nível de antiguidade e género","Quadro 3: Contagem dos trabalhadores por grupo/cargo/carreira, segundo o nível de antiguidade e género","Quadro 3: Contagem dos trabalhadores por grupo/cargo/carreira, segundo o nível de antiguidade e género","Quadro 3: Contagem dos trabalhadores por grupo/cargo/carreira, segundo o nível de antiguidade e género","Quadro 3: Contagem dos trabalhadores por grupo/cargo/carreira, segundo o nível de antiguidade e género","Quadro 3: Contagem dos trabalhadores por grupo/cargo/carreira, segundo o nível de antiguidade e género","Quadro 3: Contagem dos trabalhadores por grupo/cargo/carreira, segundo o nível de antiguidade e género","Quadro 3: Contagem dos trabalhadores por grupo/cargo/carreira, segundo o nível de antiguidade e género","Quadro 3: Contagem dos trabalhadores por grupo/cargo/carreira, segundo o nível de antiguidade e género","Quadro 3: Contagem dos trabalhadores por grupo/cargo/carreira, segundo o nível de antiguidade e género","Quadro 3: Contagem dos trabalhadores por grupo/cargo/carreira, segundo o nível de antiguidade e género","Quadro 3: Contagem dos trabalhadores por grupo/cargo/carreira, segundo o nível de antiguidade e género","Quadro 3: Contagem dos trabalhadores por grupo/cargo/carreira, segundo o nível de antiguidade e género","Quadro 3: Contagem dos trabalhadores por grupo/cargo/carreira, segundo o nível de antiguidade e género","Quadro 3: Contagem dos trabalhadores por grupo/cargo/carreira, segundo o nível de antiguidade e género","Quadro 3: Contagem dos trabalhadores por grupo/cargo/carreira, segundo o nível de antiguidade e género","Quadro 3: Contagem dos trabalhadores por grupo/cargo/carreira, segundo o nível de antiguidade e género","Quadro 3: Contagem dos trabalhadores por grupo/cargo/carreira, segundo o nível de antiguidade e género"]
[]
["Grupo/Cargo/Carreira","até 5 anos","até 5 anos","5-9","5-9","10-14","10-14","15-19","15-19","20-24","20-24","25-29","25-29","30-34","30-34","35-39","35-39","40 ou mais anos","40 ou mais anos","Total","Total","Total"]
["Grupo/Cargo/Carreira","M","F","M","F","M","F","M","F","M","F","M","F","M","F","M","F","M","F","M","F","Total"]
["Pessoal Dirigente",0,0,0,0,0,0,0,0,0,1,0,0,0,1,0,0,0,0,0,2,2]
["Dirigente superior de 2º grau",0,0,0,0,0,0,0,0,0,0,0,0,0,0,0,0,0,0,0,0,0]
["Dirigente intermédio de 1º grau",0,0,0,0,0,0,0,0,0,0,0,0,0,0,0,0,0,0,0,0,0]
["Dirigente intermédio de 2º grau",0,0,0,0,0,0,0,0,0,0,0,0,0,0,0,0,0,0,0,0,0]
["Dirigente intermédio de 3º grau e seguintes",0,0,0,0,0,0,0,0,0,0,0,0,0,0,0,0,0,0,0,0,0]
["Técnico Superior",1,0,0,0,0,0,0,0,0,0,0,0,0,1,0,0,0,0,1,1,2]
["Assistente técnico, técnico de nível intermédio, pessoal administrativo",0,0,0,0,0,0,0,0,0,0,0,0,0,1,0,0,0,0,0,1,1]
["Assistente operacional, operário, auxiliar",0,0,0,0,0,0,0,0,0,0,0,0,0,0,0,0,0,0,0,0,0]
["Informático",0,0,0,0,0,0,0,0,0,0,0,0,0,0,0,0,0,0,0,0,0]
["Pessoal de Inspecção",1,2,1,1,1,0,0,0,0,0,0,0,0,0,0,0,0,0,3,3,6]
["Educ.Infância e Doc. do Ens. Básico e Secundário",0,0,0,0,0,0,0,0,0,0,0,0,0,0,0,0,0,0,0,0,0]
["Médico",0,0,0,0,0,0,0,0,0,0,0,0,0,0,0,0,0,0,0,0,0]
["Enfermeiro",0,0,0,0,0,0,0,0,0,0,0,0,0,0,0,0,0,0,0,0,0]
["Téc. Diagnóstico e Terapêutica",0,0,0,0,0,0,0,0,0,0,0,0,0,0,0,0,0,0,0,0,0]
["Técnico Superior de Saúde",0,0,0,0,0,0,0,0,0,0,0,0,0,0,0,0,0,0,0,0,0]
[null,{"$f":"SUBTOTAL(109,$B$6:$B$20)","v":2},{"$f":"SUBTOTAL(109,$C$6:$C$20)","v":2},{"$f":"SUBTOTAL(109,$D$6:$D$20)","v":1},{"$f":"SUBTOTAL(109,$E$6:$E$20)","v":1},{"$f":"SUBTOTAL(109,$F$6:$F$20)","v":1},{"$f":"SUBTOTAL(109,$G$6:$G$20)","v":0},{"$f":"SUBTOTAL(109,$H$6:$H$20)","v":0},{"$f":"SUBTOTAL(109,$I$6:$I$20)","v":0},{"$f":"SUBTOTAL(109,$J$6:$J$20)","v":0},{"$f":"SUBTOTAL(109,$K$6:$K$20)","v":1},{"$f":"SUBTOTAL(109,$L$6:$L$20)","v":0},{"$f":"SUBTOTAL(109,$M$6:$M$20)","v":0},{"$f":"SUBTOTAL(109,$N$6:$N$20)","v":0},{"$f":"SUBTOTAL(109,$O$6:$O$20)","v":3},{"$f":"SUBTOTAL(109,$P$6:$P$20)","v":0},{"$f":"SUBTOTAL(109,$Q$6:$Q$20)","v":0},{"$f":"SUBTOTAL(109,$R$6:$R$20)","v":0},{"$f":"SUBTOTAL(109,$S$6:$S$20)","v":0},{"$f":"SUBTOTAL(109,$T$6:$T$20)","v":4},{"$f":"SUBTOTAL(109,$U$6:$U$20)","v":7},{"$f":"SUBTOTAL(109,$V$6:$V$20)","v":11}]

{"sheet":"Quadro 4","index":3,"n_rows":21,"n_cols":24,"rows_kept":21,"cut":false,"hidden":false,"merged":[[0,0,0,23],[1,0,1,23],[3,0,4,0],[3,1,3,2],[3,3,3,4],[3,5,3,6],[3,7,3,8],[3,9,3,10],[3,11,3,12],[3,13,3,14],[3,15,3,16],[3,17,3,18],[3,19,3,20],[3,21,3,22],[3,23,4,23]]}
["Balanço social 2025","Balanço social 2025","Balanço social 2025","Balanço social 2025","Balanço social 2025","Balanço social 2025","Balanço social 2025","Balanço social 2025","Balanço social 2025","Balanço social 2025","Balanço social 2025","Balanço social 2025","Balanço social 2025","Balanço social 2025","Balanço social 2025","Balanço social 2025","Balanço social 2025","Balanço social 2025","Balanço social 2025","Balanço social 2025","Balanço social 2025","Balanço social 2025","Balanço social 2025","Balanço social 2025"]
["Quadro 4: Contagem dos trabalhadores por grupo/cargo/carreira, segundo o nível de escolaridade e género","Quadro 4: Contagem dos trabalhadores por grupo/cargo/carreira, segundo o nível de escolaridade e género","Quadro 4: Contagem dos trabalhadores por grupo/cargo/carreira, segundo o nível de escolaridade e género","Quadro 4: Contagem dos trabalhadores por grupo/cargo/carreira, segundo o nível de escolaridade e género","Quadro 4: Contagem dos trabalhadores por grupo/cargo/carreira, segundo o nível de escolaridade e género","Quadro 4: Contagem dos trabalhadores por grupo/cargo/carreira, segundo o nível de escolaridade e género","Quadro 4: Contagem dos trabalhadores por grupo/cargo/carreira, segundo o nível de escolaridade e género","Quadro 4: Contagem dos trabalhadores por grupo/cargo/carreira, segundo o nível de escolaridade e género","Quadro 4: Contagem dos trabalhadores por grupo/cargo/carreira, segundo o nível de escolaridade e género","Quadro 4: Contagem dos trabalhadores por grupo/cargo/carreira, segundo o nível de escolaridade e género","Quadro 4: Contagem dos trabalhadores por grupo/cargo/carreira, segundo o nível de escolaridade e género","Quadro 4: Contagem dos trabalhadores por grupo/cargo/carreira, segundo o nível de escolaridade e género","Quadro 4: Contagem dos trabalhadores por grupo/cargo/carreira, segundo o nível de escolaridade e género","Quadro 4: Contagem dos trabalhadores por grupo/cargo/carreira, segundo o nível de escolaridade e género","Quadro 4: Contagem dos trabalhadores por grupo/cargo/carreira, segundo o nível de escolaridade e género","Quadro 4: Contagem dos trabalhadores por grupo/cargo/carreira, segundo o nível de escolaridade e género","Quadro 4: Contagem dos trabalhadores por grupo/cargo/carreira, segundo o nível de escolaridade e género","Quadro 4: Contagem dos trabalhadores por grupo/cargo/carreira, segundo o nível de escolaridade e género","Quadro 4: Contagem dos trabalhadores por grupo/cargo/carreira, segundo o nível de escolaridade e género","Quadro 4: Contagem dos trabalhadores por grupo/cargo/carreira, segundo o nível de escolaridade e género","Quadro 4: Contagem dos trabalhadores por grupo/cargo/carreira, segundo o nível de escolaridade e género","Quadro 4: Contagem dos trabalhadores por grupo/cargo/carreira, segundo o nível de escolaridade e género","Quadro 4: Contagem dos trabalhadores por grupo/cargo/carreira, segundo o nível de escolaridade e género","Quadro 4: Contagem dos trabalhadores por grupo/cargo/carreira, segundo o nível de escolaridade e género"]
[]
["Grupo/Cargo/Carreira","Menos de 4 anos de escolaridade","Menos de 4 anos de escolaridade","4 anos de escolaridade","4 anos de escolaridade","6 anos de escolaridade","6 anos de escolaridade","9º ano ou equivalente","9º ano ou equivalente","11º ano","11º ano","12º ano ou equivalente","12º ano ou equivalente","Bacharelato","Bacharelato","Licenciatura","Licenciatura","Mestrado","Mestrado","Doutoramento","Doutoramento","Total","Total","Total"]
["Grupo/Cargo/Carreira","M","F","M","F","M","F","M","F","M","F","M","F","M","F","M","F","M","F","M","F","M","F","Total"]
["Pessoal Dirigente",0,0,0,0,0,0,0,0,0,0,0,0,0,0,0,2,0,0,0,0,0,2,2]
["Dirigente superior de 2º grau",0,0,0,0,0,0,0,0,0,0,0,0,0,0,0,0,0,0,0,0,0,0,0]
["Dirigente intermédio de 1º grau",0,0,0,0,0,0,0,0,0,0,0,0,0,0,0,0,0,0,0,0,0,0,0]
["Dirigente intermédio de 2º grau",0,0,0,0,0,0,0,0,0,0,0,0,0,0,0,0,0,0,0,0,0,0,0]
["Dirigente intermédio de 3º grau e seguintes",0,0,0,0,0,0,0,0,0,0,0,0,0,0,0,0,0,0,0,0,0,0,0]
["Técnico Superior",0,0,0,0,0,0,0,0,0,0,0,0,0,0,0,1,0,0,0,0,0,1,1]
["Assistente técnico, técnico de nível intermédio, pessoal administrativo",0,0,0,0,0,0,0,0,0,0,0,1,0,0,0,0,0,0,0,0,0,1,1]
["Assistente operacional, operário, auxiliar",0,0,0,0,0,0,0,0,0,0,0,0,0,0,0,0,0,0,0,0,0,0,0]
["Informático",0,0,0,0,0,0,0,0,0,0,0,0,0,0,0,0,0,0,0,0,0,0,0]
["Pessoal de Inspecção",0,0,0,0,0,0,0,0,0,0,0,0,0,0,3,3,0,0,0,0,3,3,6]
["Educ.Infância e Doc. do Ens. Básico e Secundário",0,0,0,0,0,0,0,0,0,0,0,0,0,0,0,0,0,0,0,0,0,0,0]
["Médico",0,0,0,0,0,0,0,0,0,0,0,0,0,0,0,0,0,0,0,0,0,0,0]
["Enfermeiro",0,0,0,0,0,0,0,0,0,0,0,0,0,0,0,0,0,0,0,0,0,0,0]
["Téc. Diagnóstico e Terapêutica",0,0,0,0,0,0,0,0,0,0,0,0,0,0,0,0,0,0,0,0,0,0,0]
["Técnico Superior de Saúde",0,0,0,0,0,0,0,0,0,0,0,0,0,0,0,0,0,0,0,0,0,0,0]
[null,{"$f":"SUBTOTAL(109,$B$6:$B$20)","v":0},{"$f":"SUBTOTAL(109,$C$6:$C$20)","v":0},{"$f":"SUBTOTAL(109,$D$6:$D$20)","v":0},{"$f":"SUBTOTAL(109,$E$6:$E$20)","v":0},{"$f":"SUBTOTAL(109,$F$6:$F$20)","v":0},{"$f":"SUBTOTAL(109,$G$6:$G$20)","v":0},{"$f":"SUBTOTAL(109,$H$6:$H$20)","v":0},{"$f":"SUBTOTAL(109,$I$6:$I$20)","v":0},{"$f":"SUBTOTAL(109,$J$6:$J$20)","v":0},{"$f":"SUBTOTAL(109,$K$6:$K$20)","v":0},{"$f":"SUBTOTAL(109,$L$6:$L$20)","v":0},{"$f":"SUBTOTAL(109,$M$6:$M$20)","v":1},{"$f":"SUBTOTAL(109,$N$6:$N$20)","v":0},{"$f":"SUBTOTAL(109,$O$6:$O$20)","v":0},{"$f":"SUBTOTAL(109,$P$6:$P$20)","v":3},{"$f":"SUBTOTAL(109,$Q$6:$Q$20)","v":6},{"$f":"SUBTOTAL(109,$R$6:$R$20)","v":0},{"$f":"SUBTOTAL(109,$S$6:$S$20)","v":0},{"$f":"SUBTOTAL(109,$T$6:$T$20)","v":0},{"$f":"SUBTOTAL(109,$U$6:$U$20)","v":0},{"$f":"SUBTOTAL(109,$V$6:$V$20)","v":3},{"$f":"SUBTOTAL(109,$W$6:$W$20)","v":7},{"$f":"SUBTOTAL(109,$X$6:$X$20)","v":10}]

{"sheet":"Quadro 5","index":4,"n_rows":26,"n_cols":10,"rows_kept":26,"cut":false,"hidden":false,"merged":[[0,0,0,9],[1,0,1,9],[3,0,4,0],[3,1,3,2],[3,3,3,4],[3,5,3,6],[3,7,3,8],[3,9,4,9]]}
["Balanço social 2025","Balanço social 2025","Balanço social 2025","Balanço social 2025","Balanço social 2025","Balanço social 2025","Balanço social 2025","Balanço social 2025","Balanço social 2025","Balanço social 2025"]
["Quadro 5: Contagem dos trabalhadores estrangeiros por grupo/cargo/carreira, segundo a nacionalidade e género","Quadro 5: Contagem dos trabalhadores estrangeiros por grupo/cargo/carreira, segundo a nacionalidade e género","Quadro 5: Contagem dos trabalhadores estrangeiros por grupo/cargo/carreira, segundo a nacionalidade e género","Quadro 5: Contagem dos trabalhadores estrangeiros por grupo/cargo/carreira, segundo a nacionalidade e género","Quadro 5: Contagem dos trabalhadores estrangeiros por grupo/cargo/carreira, segundo a nacionalidade e género","Quadro 5: Contagem dos trabalhadores estrangeiros por grupo/cargo/carreira, segundo a nacionalidade e género","Quadro 5: Contagem dos trabalhadores estrangeiros por grupo/cargo/carreira, segundo a nacionalidade e género","Quadro 5: Contagem dos trabalhadores estrangeiros por grupo/cargo/carreira, segundo a nacionalidade e género","Quadro 5: Contagem dos trabalhadores estrangeiros por grupo/cargo/carreira, segundo a nacionalidade e género","Quadro 5: Contagem dos trabalhadores estrangeiros por grupo/cargo/carreira, segundo a nacionalidade e género"]
[]
["Grupo/Cargo/Carreira","União Europeia","União Europeia","CPLP","CPLP","Outros Países","Outros Países","Total","Total","Total"]
["Grupo/Cargo/Carreira","M","F","M","F","M","F","M","F","Total"]
["Pessoal Dirigente",0,0,0,0,0,0,0,0,0]
["Dirigente superior de 2º grau",0,0,0,0,0,0,0,0,0]
["Dirigente intermédio de 1º grau",0,0,0,0,0,0,0,0,0]
["Dirigente intermédio de 2º grau",0,0,0,0,0,0,0,0,0]
["Dirigente intermédio de 3º grau e seguintes",0,0,0,0,0,0,0,0,0]
["Técnico Superior",0,0,0,0,0,0,0,0,0]
["Assistente técnico, técnico de nível intermédio, pessoal administrativo",0,0,0,0,0,0,0,0,0]
["Assistente operacional, operário, auxiliar",0,0,0,0,0,0,0,0,0]
["Informático",0,0,0,0,0,0,0,0,0]
["Pessoal de Inspecção",0,0,0,0,0,0,0,0,0]
["Educ.Infância e Doc. do Ens. Básico e Secundário",0,0,0,0,0,0,0,0,0]
["Médico",0,0,0,0,0,0,0,0,0]
["Enfermeiro",0,0,0,0,0,0,0,0,0]
["Téc. Diagnóstico e Terapêutica",0,0,0,0,0,0,0,0,0]
["Técnico Superior de Saúde",0,0,0,0,0,0,0,0,0]
[null,{"$f":"SUBTOTAL(109,$B$6:$B$20)","v":0},{"$f":"SUBTOTAL(109,$C$6:$C$20)","v":0},{"$f":"SUBTOTAL(109,$D$6:$D$20)","v":0},{"$f":"SUBTOTAL(109,$E$6:$E$20)","v":0},{"$f":"SUBTOTAL(109,$F$6:$F$20)","v":0},{"$f":"SUBTOTAL(109,$G$6:$G$20)","v":0},{"$f":"SUBTOTAL(109,$H$6:$H$20)","v":0},{"$f":"SUBTOTAL(109,$I$6:$I$20)","v":0},{"$f":"SUBTOTAL(109,$J$6:$J$20)","v":0}]
[]
["Prestações de serviços","União Europeia<-M","União Europeia<-F","CPLP<-M","CPLP<-F","Outros Países<-M","Outros Países<-F","Total<-M","Total<-F","Total"]
["Tarefa",0,0,0,0,0,0,0,0,0]
["Avença",0,0,0,0,0,0,0,0,0]
[null,{"$f":"SUBTOTAL(109,$B$24:$B$25)","v":0},{"$f":"SUBTOTAL(109,$C$24:$C$25)","v":0},{"$f":"SUBTOTAL(109,$D$24:$D$25)","v":0},{"$f":"SUBTOTAL(109,$E$24:$E$25)","v":0},{"$f":"SUBTOTAL(109,$F$24:$F$25)","v":0},{"$f":"SUBTOTAL(109,$G$24:$G$25)","v":0},{"$f":"SUBTOTAL(109,$H$24:$H$25)","v":0},{"$f":"SUBTOTAL(109,$I$24:$I$25)","v":0},{"$f":"SUBTOTAL(109,$J$24:$J$25)","v":0}]

{"sheet":"Quadro 6","index":5,"n_rows":26,"n_cols":28,"rows_kept":26,"cut":false,"hidden":false,"merged":[[3,27,4,27],[0,0,0,27],[1,0,1,27],[3,0,4,0],[3,1,3,2],[3,3,3,4],[3,5,3,6],[3,7,3,8],[3,9,3,10],[3,11,3,12],[3,13,3,14],[3,15,3,16],[3,17,3,18],[3,19,3,20],[3,21,3,22],[3,23,3,24],[3,25,3,26]]}
["Balanço social 2025","Balanço social 2025","Balanço social 2025","Balanço social 2025","Balanço social 2025","Balanço social 2025","Balanço social 2025","Balanço social 2025","Balanço social 2025","Balanço social 2025","Balanço social 2025","Balanço social 2025","Balanço social 2025","Balanço social 2025","Balanço social 2025","Balanço social 2025","Balanço social 2025","Balanço social 2025","Balanço social 2025","Balanço social 2025","Balanço social 2025","Balanço social 2025","Balanço social 2025","Balanço social 2025","Balanço social 2025","Balanço social 2025","Balanço social 2025","Balanço social 2025"]
["Quadro 6: Contagem de trabalhadores portadores de deficiência por grupo/cargo/carreira, segundo o escalão etário e género","Quadro 6: Contagem de trabalhadores portadores de deficiência por grupo/cargo/carreira, segundo o escalão etário e género","Quadro 6: Contagem de trabalhadores portadores de deficiência por grupo/cargo/carreira, segundo o escalão etário e género","Quadro 6: Contagem de trabalhadores portadores de deficiência por grupo/cargo/carreira, segundo o escalão etário e género","Quadro 6: Contagem de trabalhadores portadores de deficiência por grupo/cargo/carreira, segundo o escalão etário e género","Quadro 6: Contagem de trabalhadores portadores de deficiência por grupo/cargo/carreira, segundo o escalão etário e género","Quadro 6: Contagem de trabalhadores portadores de deficiência por grupo/cargo/carreira, segundo o escalão etário e género","Quadro 6: Contagem de trabalhadores portadores de deficiência por grupo/cargo/carreira, segundo o escalão etário e género","Quadro 6: Contagem de trabalhadores portadores de deficiência por grupo/cargo/carreira, segundo o escalão etário e género","Quadro 6: Contagem de trabalhadores portadores de deficiência por grupo/cargo/carreira, segundo o escalão etário e género","Quadro 6: Contagem de trabalhadores portadores de deficiência por grupo/cargo/carreira, segundo o escalão etário e género","Quadro 6: Contagem de trabalhadores portadores de deficiência por grupo/cargo/carreira, segundo o escalão etário e género","Quadro 6: Contagem de trabalhadores portadores de deficiência por grupo/cargo/carreira, segundo o escalão etário e género","Quadro 6: Contagem de trabalhadores portadores de deficiência por grupo/cargo/carreira, segundo o escalão etário e género","Quadro 6: Contagem de trabalhadores portadores de deficiência por grupo/cargo/carreira, segundo o escalão etário e género","Quadro 6: Contagem de trabalhadores portadores de deficiência por grupo/cargo/carreira, segundo o escalão etário e género","Quadro 6: Contagem de trabalhadores portadores de deficiência por grupo/cargo/carreira, segundo o escalão etário e género","Quadro 6: Contagem de trabalhadores portadores de deficiência por grupo/cargo/carreira, segundo o escalão etário e género","Quadro 6: Contagem de trabalhadores portadores de deficiência por grupo/cargo/carreira, segundo o escalão etário e género","Quadro 6: Contagem de trabalhadores portadores de deficiência por grupo/cargo/carreira, segundo o escalão etário e género","Quadro 6: Contagem de trabalhadores portadores de deficiência por grupo/cargo/carreira, segundo o escalão etário e género","Quadro 6: Contagem de trabalhadores portadores de deficiência por grupo/cargo/carreira, segundo o escalão etário e género","Quadro 6: Contagem de trabalhadores portadores de deficiência por grupo/cargo/carreira, segundo o escalão etário e género","Quadro 6: Contagem de trabalhadores portadores de deficiência por grupo/cargo/carreira, segundo o escalão etário e género","Quadro 6: Contagem de trabalhadores portadores de deficiência por grupo/cargo/carreira, segundo o escalão etário e género","Quadro 6: Contagem de trabalhadores portadores de deficiência por grupo/cargo/carreira, segundo o escalão etário e género","Quadro 6: Contagem de trabalhadores portadores de deficiência por grupo/cargo/carreira, segundo o escalão etário e género","Quadro 6: Contagem de trabalhadores portadores de deficiência por grupo/cargo/carreira, segundo o escalão etário e género"]
[]
["Grupo/Cargo/Carreira","Menos que 20 anos","Menos que 20 anos","20-24","20-24","25-29","25-29","30-34","30-34","35-39","35-39","40-44","40-44","45-49","45-49","50-54","50-54","55-59","55-59","60-64","60-64","65-69","65-69","maior ou igual a 70 anos","maior ou igual a 70 anos","Total","Total","Total"]
["Grupo/Cargo/Carreira","M","F","M","F","M","F","M","F","M","F","M","F","M","F","M","F","M","F","M","F","M","F","M","F","M","F","Total"]
["Pessoal Dirigente",0,0,0,0,0,0,0,0,0,0,0,0,0,0,0,0,0,0,0,0,0,0,0,0,0,0,0]
["Dirigente superior de 2º grau",0,0,0,0,0,0,0,0,0,0,0,0,0,0,0,0,0,0,0,0,0,0,0,0,0,0,0]
["Dirigente intermédio de 1º grau",0,0,0,0,0,0,0,0,0,0,0,0,0,0,0,0,0,0,0,0,0,0,0,0,0,0,0]
["Dirigente intermédio de 2º grau",0,0,0,0,0,0,0,0,0,0,0,0,0,0,0,0,0,0,0,0,0,0,0,0,0,0,0]
["Dirigente intermédio de 3º grau e seguintes",0,0,0,0,0,0,0,0,0,0,0,0,0,0,0,0,0,0,0,0,0,0,0,0,0,0,0]
["Técnico Superior",0,0,0,0,0,0,0,0,0,0,0,0,0,0,0,0,0,0,0,0,0,0,0,0,0,0,0]
["Assistente técnico, técnico de nível intermédio, pessoal administrativo",0,0,0,0,0,0,0,0,0,0,0,0,0,0,0,0,0,0,0,0,0,0,0,0,0,0,0]
["Assistente operacional, operário, auxiliar",0,0,0,0,0,0,0,0,0,0,0,0,0,0,0,0,0,0,0,0,0,0,0,0,0,0,0]
["Informático",0,0,0,0,0,0,0,0,0,0,0,0,0,0,0,0,0,0,0,0,0,0,0,0,0,0,0]
["Pessoal de Inspecção",0,0,0,0,0,0,0,0,0,0,0,0,0,0,0,0,0,0,0,0,0,0,0,0,0,0,0]
["Educ.Infância e Doc. do Ens. Básico e Secundário",0,0,0,0,0,0,0,0,0,0,0,0,0,0,0,0,0,0,0,0,0,0,0,0,0,0,0]
["Médico",0,0,0,0,0,0,0,0,0,0,0,0,0,0,0,0,0,0,0,0,0,0,0,0,0,0,0]
["Enfermeiro",0,0,0,0,0,0,0,0,0,0,0,0,0,0,0,0,0,0,0,0,0,0,0,0,0,0,0]
["Téc. Diagnóstico e Terapêutica",0,0,0,0,0,0,0,0,0,0,0,0,0,0,0,0,0,0,0,0,0,0,0,0,0,0,0]
["Técnico Superior de Saúde",0,0,0,0,0,0,0,0,0,0,0,0,0,0,0,0,0,0,0,0,0,0,0,0,0,0,0]
[null,{"$f":"SUBTOTAL(109,$B$6:$B$20)","v":0},{"$f":"SUBTOTAL(109,$C$6:$C$20)","v":0},{"$f":"SUBTOTAL(109,$D$6:$D$20)","v":0},{"$f":"SUBTOTAL(109,$E$6:$E$20)","v":0},{"$f":"SUBTOTAL(109,$F$6:$F$20)","v":0},{"$f":"SUBTOTAL(109,$G$6:$G$20)","v":0},{"$f":"SUBTOTAL(109,$H$6:$H$20)","v":0},{"$f":"SUBTOTAL(109,$I$6:$I$20)","v":0},{"$f":"SUBTOTAL(109,$J$6:$J$20)","v":0},{"$f":"SUBTOTAL(109,$K$6:$K$20)","v":0},{"$f":"SUBTOTAL(109,$L$6:$L$20)","v":0},{"$f":"SUBTOTAL(109,$M$6:$M$20)","v":0},{"$f":"SUBTOTAL(109,$N$6:$N$20)","v":0},{"$f":"SUBTOTAL(109,$O$6:$O$20)","v":0},{"$f":"SUBTOTAL(109,$P$6:$P$20)","v":0},{"$f":"SUBTOTAL(109,$Q$6:$Q$20)","v":0},{"$f":"SUBTOTAL(109,$R$6:$R$20)","v":0},{"$f":"SUBTOTAL(109,$S$6:$S$20)","v":0},{"$f":"SUBTOTAL(109,$T$6:$T$20)","v":0},{"$f":"SUBTOTAL(109,$U$6:$U$20)","v":0},{"$f":"SUBTOTAL(109,$V$6:$V$20)","v":0},{"$f":"SUBTOTAL(109,$W$6:$W$20)","v":0},{"$f":"SUBTOTAL(109,$X$6:$X$20)","v":0},{"$f":"SUBTOTAL(109,$Y$6:$Y$20)","v":0},{"$f":"SUBTOTAL(109,$Z$6:$Z$20)","v":0},{"$f":"SUBTOTAL(109,$AA$6:$AA$20)","v":0},{"$f":"SUBTOTAL(109,$AB$6:$AB$20)","v":0}]
[]
["Prestações de serviços","Menos que 20 anos<-M","Menos que 20 anos<-F","20-24<-M","20-24<-F","25-29<-M","25-29<-F","30-34<-M","30-34<-F","35-39<-M","35-39<-F","40-44<-M","40-44<-F","45-49<-M","45-49<-F","50-54<-M","50-54<-F","55-59<-M","55-59<-F","60-64<-M","60-64<-F","65-69<-M","65-69<-F","maior ou igual a 70 anos<-M","maior ou igual a 70 anos<-F","Total<-M","Total<-F","Total"]
["Tarefa",0,0,0,0,0,0,0,0,0,0,0,0,0,0,0,0,0,0,0,0,0,0,0,0,0,0,0]
["Avença",0,0,0,0,0,0,0,0,0,0,0,0,0,0,0,0,0,0,0,0,0,0,0,0,0,0,0]
[null,{"$f":"SUBTOTAL(109,$B$24:$B$25)","v":0},{"$f":"SUBTOTAL(109,$C$24:$C$25)","v":0},{"$f":"SUBTOTAL(109,$D$24:$D$25)","v":0},{"$f":"SUBTOTAL(109,$E$24:$E$25)","v":0},{"$f":"SUBTOTAL(109,$F$24:$F$25)","v":0},{"$f":"SUBTOTAL(109,$G$24:$G$25)","v":0},{"$f":"SUBTOTAL(109,$H$24:$H$25)","v":0},{"$f":"SUBTOTAL(109,$I$24:$I$25)","v":0},{"$f":"SUBTOTAL(109,$J$24:$J$25)","v":0},{"$f":"SUBTOTAL(109,$K$24:$K$25)","v":0},{"$f":"SUBTOTAL(109,$L$24:$L$25)","v":0},{"$f":"SUBTOTAL(109,$M$24:$M$25)","v":0},{"$f":"SUBTOTAL(109,$N$24:$N$25)","v":0},{"$f":"SUBTOTAL(109,$O$24:$O$25)","v":0},{"$f":"SUBTOTAL(109,$P$24:$P$25)","v":0},{"$f":"SUBTOTAL(109,$Q$24:$Q$25)","v":0},{"$f":"SUBTOTAL(109,$R$24:$R$25)","v":0},{"$f":"SUBTOTAL(109,$S$24:$S$25)","v":0},{"$f":"SUBTOTAL(109,$T$24:$T$25)","v":0},{"$f":"SUBTOTAL(109,$U$24:$U$25)","v":0},{"$f":"SUBTOTAL(109,$V$24:$V$25)","v":0},{"$f":"SUBTOTAL(109,$W$24:$W$25)","v":0},{"$f":"SUBTOTAL(109,$X$24:$X$25)","v":0},{"$f":"SUBTOTAL(109,$Y$24:$Y$25)","v":0},{"$f":"SUBTOTAL(109,$Z$24:$Z$25)","v":0},{"$f":"SUBTOTAL(109,$AA$24:$AA$25)","v":0},{"$f":"SUBTOTAL(109,$AB$24:$AB$25)","v":0}]

{"sheet":"Quadro 7","index":6,"n_rows":26,"n_cols":18,"rows_kept":26,"cut":false,"hidden":false,"merged":[[0,0,0,17],[1,0,1,17],[3,0,4,0],[3,1,3,2],[3,3,3,4],[3,5,3,6],[3,7,3,8],[3,9,3,10],[3,11,3,12],[3,13,3,14],[3,15,3,16],[3,17,4,17]]}
["Balanço social 2025","Balanço social 2025","Balanço social 2025","Balanço social 2025","Balanço social 2025","Balanço social 2025","Balanço social 2025","Balanço social 2025","Balanço social 2025","Balanço social 2025","Balanço social 2025","Balanço social 2025","Balanço social 2025","Balanço social 2025","Balanço social 2025","Balanço social 2025","Balanço social 2025","Balanço social 2025"]
["Quadro 7: Contagem dos trabalhadores admitidos e regressados durante o ano por grupo/cargo/carreira, segundo o modo de ocupação do posto de trabalho ou modalidade de vinculação","Quadro 7: Contagem dos trabalhadores admitidos e regressados durante o ano por grupo/cargo/carreira, segundo o modo de ocupação do posto de trabalho ou modalidade de vinculação","Quadro 7: Contagem dos trabalhadores admitidos e regressados durante o ano por grupo/cargo/carreira, segundo o modo de ocupação do posto de trabalho ou modalidade de vinculação","Quadro 7: Contagem dos trabalhadores admitidos e regressados durante o ano por grupo/cargo/carreira, segundo o modo de ocupação do posto de trabalho ou modalidade de vinculação","Quadro 7: Contagem dos trabalhadores admitidos e regressados durante o ano por grupo/cargo/carreira, segundo o modo de ocupação do posto de trabalho ou modalidade de vinculação","Quadro 7: Contagem dos trabalhadores admitidos e regressados durante o ano por grupo/cargo/carreira, segundo o modo de ocupação do posto de trabalho ou modalidade de vinculação","Quadro 7: Contagem dos trabalhadores admitidos e regressados durante o ano por grupo/cargo/carreira, segundo o modo de ocupação do posto de trabalho ou modalidade de vinculação","Quadro 7: Contagem dos trabalhadores admitidos e regressados durante o ano por grupo/cargo/carreira, segundo o modo de ocupação do posto de trabalho ou modalidade de vinculação","Quadro 7: Contagem dos trabalhadores admitidos e regressados durante o ano por grupo/cargo/carreira, segundo o modo de ocupação do posto de trabalho ou modalidade de vinculação","Quadro 7: Contagem dos trabalhadores admitidos e regressados durante o ano por grupo/cargo/carreira, segundo o modo de ocupação do posto de trabalho ou modalidade de vinculação","Quadro 7: Contagem dos trabalhadores admitidos e regressados durante o ano por grupo/cargo/carreira, segundo o modo de ocupação do posto de trabalho ou modalidade de vinculação","Quadro 7: Contagem dos trabalhadores admitidos e regressados durante o ano por grupo/cargo/carreira, segundo o modo de ocupação do posto de trabalho ou modalidade de vinculação","Quadro 7: Contagem dos trabalhadores admitidos e regressados durante o ano por grupo/cargo/carreira, segundo o modo de ocupação do posto de trabalho ou modalidade de vinculação","Quadro 7: Contagem dos trabalhadores admitidos e regressados durante o ano por grupo/cargo/carreira, segundo o modo de ocupação do posto de trabalho ou modalidade de vinculação","Quadro 7: Contagem dos trabalhadores admitidos e regressados durante o ano por grupo/cargo/carreira, segundo o modo de ocupação do posto de trabalho ou modalidade de vinculação","Quadro 7: Contagem dos trabalhadores admitidos e regressados durante o ano por grupo/cargo/carreira, segundo o modo de ocupação do posto de trabalho ou modalidade de vinculação","Quadro 7: Contagem dos trabalhadores admitidos e regressados durante o ano por grupo/cargo/carreira, segundo o modo de ocupação do posto de trabalho ou modalidade de vinculação","Quadro 7: Contagem dos trabalhadores admitidos e regressados durante o ano por grupo/cargo/carreira, segundo o modo de ocupação do posto de trabalho ou modalidade de vinculação"]
[]
["Grupo/Cargo/Carreira","Procedimento concursal","Procedimento concursal","Cedência","Cedência","Mobilidade interna","Mobilidade interna","Regresso de licença sem vencimento ou de período experimental","Regresso de licença sem vencimento ou de período experimental","Comissão de serviço","Comissão de serviço","CEAGP","CEAGP","Outras situações","Outras situações","Total","Total","Total"]
["Grupo/Cargo/Carreira","M","F","M","F","M","F","M","F","M","F","M","F","M","F","M","F","Total"]
["Pessoal Dirigente",0,0,0,0,0,0,0,0,0,0,0,0,0,0,0,0,0]
["Dirigente superior de 2º grau",0,0,0,0,0,0,0,0,0,0,0,0,0,0,0,0,0]
["Dirigente intermédio de 1º grau",0,0,0,0,0,0,0,0,0,0,0,0,0,0,0,0,0]
["Dirigente intermédio de 2º grau",0,0,0,0,0,0,0,0,0,0,0,0,0,0,0,0,0]
["Dirigente intermédio de 3º grau e seguintes",0,0,0,0,0,0,0,0,0,0,0,0,0,0,0,0,0]
["Técnico Superior",0,0,0,0,0,0,0,0,0,0,0,0,0,0,0,0,0]
["Assistente técnico, técnico de nível intermédio, pessoal administrativo",0,0,0,0,0,0,0,0,0,0,0,0,0,0,0,0,0]
["Assistente operacional, operário, auxiliar",0,0,0,0,0,0,0,0,0,0,0,0,0,0,0,0,0]
["Informático",0,0,0,0,0,0,0,0,0,0,0,0,0,0,0,0,0]
["Pessoal de Inspecção",1,1,0,0,0,0,0,0,0,0,0,0,0,0,1,1,2]
["Educ.Infância e Doc. do Ens. Básico e Secundário",0,0,0,0,0,0,0,0,0,0,0,0,0,0,0,0,0]
["Médico",0,0,0,0,0,0,0,0,0,0,0,0,0,0,0,0,0]
["Enfermeiro",0,0,0,0,0,0,0,0,0,0,0,0,0,0,0,0,0]
["Téc. Diagnóstico e Terapêutica",0,0,0,0,0,0,0,0,0,0,0,0,0,0,0,0,0]
["Técnico Superior de Saúde",0,0,0,0,0,0,0,0,0,0,0,0,0,0,0,0,0]
[null,{"$f":"SUBTOTAL(109,$B$6:$B$20)","v":1},{"$f":"SUBTOTAL(109,$C$6:$C$20)","v":1},{"$f":"SUBTOTAL(109,$D$6:$D$20)","v":0},{"$f":"SUBTOTAL(109,$E$6:$E$20)","v":0},{"$f":"SUBTOTAL(109,$F$6:$F$20)","v":0},{"$f":"SUBTOTAL(109,$G$6:$G$20)","v":0},{"$f":"SUBTOTAL(109,$H$6:$H$20)","v":0},{"$f":"SUBTOTAL(109,$I$6:$I$20)","v":0},{"$f":"SUBTOTAL(109,$J$6:$J$20)","v":0},{"$f":"SUBTOTAL(109,$K$6:$K$20)","v":0},{"$f":"SUBTOTAL(109,$L$6:$L$20)","v":0},{"$f":"SUBTOTAL(109,$M$6:$M$20)","v":0},{"$f":"SUBTOTAL(109,$N$6:$N$20)","v":0},{"$f":"SUBTOTAL(109,$O$6:$O$20)","v":0},{"$f":"SUBTOTAL(109,$P$6:$P$20)","v":1},{"$f":"SUBTOTAL(109,$Q$6:$Q$20)","v":1},{"$f":"SUBTOTAL(109,$R$6:$R$20)","v":2}]
[]
["Prestadores de serviços","M","F","Total"]
["Tarefa",0,0,0]
["Avença",1,0,1]
[null,{"$f":"SUBTOTAL(109,$B$24:$B$25)","v":1},{"$f":"SUBTOTAL(109,$C$24:$C$25)","v":0},{"$f":"SUBTOTAL(109,$D$24:$D$25)","v":1}]

{"sheet":"Quadro 8","index":7,"n_rows":21,"n_cols":26,"rows_kept":21,"cut":false,"hidden":false,"merged":[[0,0,0,25],[1,0,1,25],[3,0,4,0],[3,1,3,2],[3,3,3,4],[3,5,3,6],[3,7,3,8],[3,9,3,10],[3,11,3,12],[3,13,3,14],[3,15,3,16],[3,17,3,18],[3,19,3,20],[3,21,3,22],[3,23,3,24],[3,25,4,25]]}
["Balanço social 2025","Balanço social 2025","Balanço social 2025","Balanço social 2025","Balanço social 2025","Balanço social 2025","Balanço social 2025","Balanço social 2025","Balanço social 2025","Balanço social 2025","Balanço social 2025","Balanço social 2025","Balanço social 2025","Balanço social 2025","Balanço social 2025","Balanço social 2025","Balanço social 2025","Balanço social 2025","Balanço social 2025","Balanço social 2025","Balanço social 2025","Balanço social 2025","Balanço social 2025","Balanço social 2025","Balanço social 2025","Balanço social 2025"]
["Quadro 8: Contagem das saídas de trabalhadores nomeados ou em comissão de serviço, por grupo/cargo/carreira, segundo o motivo de saída e género","Quadro 8: Contagem das saídas de trabalhadores nomeados ou em comissão de serviço, por grupo/cargo/carreira, segundo o motivo de saída e género","Quadro 8: Contagem das saídas de trabalhadores nomeados ou em comissão de serviço, por grupo/cargo/carreira, segundo o motivo de saída e género","Quadro 8: Contagem das saídas de trabalhadores nomeados ou em comissão de serviço, por grupo/cargo/carreira, segundo o motivo de saída e género","Quadro 8: Contagem das saídas de trabalhadores nomeados ou em comissão de serviço, por grupo/cargo/carreira, segundo o motivo de saída e género","Quadro 8: Contagem das saídas de trabalhadores nomeados ou em comissão de serviço, por grupo/cargo/carreira, segundo o motivo de saída e género","Quadro 8: Contagem das saídas de trabalhadores nomeados ou em comissão de serviço, por grupo/cargo/carreira, segundo o motivo de saída e género","Quadro 8: Contagem das saídas de trabalhadores nomeados ou em comissão de serviço, por grupo/cargo/carreira, segundo o motivo de saída e género","Quadro 8: Contagem das saídas de trabalhadores nomeados ou em comissão de serviço, por grupo/cargo/carreira, segundo o motivo de saída e género","Quadro 8: Contagem das saídas de trabalhadores nomeados ou em comissão de serviço, por grupo/cargo/carreira, segundo o motivo de saída e género","Quadro 8: Contagem das saídas de trabalhadores nomeados ou em comissão de serviço, por grupo/cargo/carreira, segundo o motivo de saída e género","Quadro 8: Contagem das saídas de trabalhadores nomeados ou em comissão de serviço, por grupo/cargo/carreira, segundo o motivo de saída e género","Quadro 8: Contagem das saídas de trabalhadores nomeados ou em comissão de serviço, por grupo/cargo/carreira, segundo o motivo de saída e género","Quadro 8: Contagem das saídas de trabalhadores nomeados ou em comissão de serviço, por grupo/cargo/carreira, segundo o motivo de saída e género","Quadro 8: Contagem das saídas de trabalhadores nomeados ou em comissão de serviço, por grupo/cargo/carreira, segundo o motivo de saída e género","Quadro 8: Contagem das saídas de trabalhadores nomeados ou em comissão de serviço, por grupo/cargo/carreira, segundo o motivo de saída e género","Quadro 8: Contagem das saídas de trabalhadores nomeados ou em comissão de serviço, por grupo/cargo/carreira, segundo o motivo de saída e género","Quadro 8: Contagem das saídas de trabalhadores nomeados ou em comissão de serviço, por grupo/cargo/carreira, segundo o motivo de saída e género","Quadro 8: Contagem das saídas de trabalhadores nomeados ou em comissão de serviço, por grupo/cargo/carreira, segundo o motivo de saída e género","Quadro 8: Contagem das saídas de trabalhadores nomeados ou em comissão de serviço, por grupo/cargo/carreira, segundo o motivo de saída e género","Quadro 8: Contagem das saídas de trabalhadores nomeados ou em comissão de serviço, por grupo/cargo/carreira, segundo o motivo de saída e género","Quadro 8: Contagem das saídas de trabalhadores nomeados ou em comissão de serviço, por grupo/cargo/carreira, segundo o motivo de saída e género","Quadro 8: Contagem das saídas de trabalhadores nomeados ou em comissão de serviço, por grupo/cargo/carreira, segundo o motivo de saída e género","Quadro 8: Contagem das saídas de trabalhadores nomeados ou em comissão de serviço, por grupo/cargo/carreira, segundo o motivo de saída e género","Quadro 8: Contagem das saídas de trabalhadores nomeados ou em comissão de serviço, por grupo/cargo/carreira, segundo o motivo de saída e género","Quadro 8: Contagem das saídas de trabalhadores nomeados ou em comissão de serviço, por grupo/cargo/carreira, segundo o motivo de saída e género"]
[]
["Grupo/Cargo/Carreira","Morte","Morte","Reforma / Aposentação","Reforma / Aposentação","Limite de idade","Limite de idade","Conclusão sem sucesso do período experimental","Conclusão sem sucesso do período experimental","Cessação por mútuo acordo","Cessação por mútuo acordo","Exoneração a pedido do trabalhador","Exoneração a pedido do trabalhador","Aplicação de pena disciplinar expulsiva","Aplicação de pena disciplinar expulsiva","Mobilidade interna","Mobilidade interna","Cedência","Cedência","Comissão de serviço","Comissão de serviço","Outras Situações","Outras Situações","Total","Total","Total"]
["Grupo/Cargo/Carreira","M","F","M","F","M","F","M","F","M","F","M","F","M","F","M","F","M","F","M","F","M","F","M","F","Total"]
["Pessoal Dirigente",0,0,0,0,0,0,0,0,0,0,0,0,0,0,0,0,0,0,0,0,0,0,0,0,0]
["Dirigente superior de 2º grau",0,0,0,0,0,0,0,0,0,0,0,0,0,0,0,0,0,0,0,0,0,0,0,0,0]
["Dirigente intermédio de 1º grau",0,0,0,0,0,0,0,0,0,0,0,0,0,0,0,0,0,0,0,0,0,0,0,0,0]
["Dirigente intermédio de 2º grau",0,0,0,0,0,0,0,0,0,0,0,0,0,0,0,0,0,0,0,0,0,0,0,0,0]
["Dirigente intermédio de 3º grau e seguintes",0,0,0,0,0,0,0,0,0,0,0,0,0,0,0,0,0,0,0,0,0,0,0,0,0]
["Técnico Superior",0,0,0,0,0,0,0,0,0,0,0,0,0,0,0,0,0,0,0,0,0,0,0,0,0]
["Assistente técnico, técnico de nível intermédio, pessoal administrativo",0,0,0,0,0,0,0,0,0,0,0,0,0,0,0,0,0,0,0,0,0,0,0,0,0]
["Assistente operacional, operário, auxiliar",0,0,0,0,0,0,0,0,0,0,0,0,0,0,0,0,0,0,0,0,0,0,0,0,0]
["Informático",0,0,0,0,0,0,0,0,0,0,0,0,0,0,0,0,0,0,0,0,0,0,0,0,0]
["Pessoal de Inspecção",0,0,0,0,0,0,0,0,0,0,0,0,0,0,0,0,0,0,0,0,0,0,0,0,0]
["Educ.Infância e Doc. do Ens. Básico e Secundário",0,0,0,0,0,0,0,0,0,0,0,0,0,0,0,0,0,0,0,0,0,0,0,0,0]
["Médico",0,0,0,0,0,0,0,0,0,0,0,0,0,0,0,0,0,0,0,0,0,0,0,0,0]
["Enfermeiro",0,0,0,0,0,0,0,0,0,0,0,0,0,0,0,0,0,0,0,0,0,0,0,0,0]
["Téc. Diagnóstico e Terapêutica",0,0,0,0,0,0,0,0,0,0,0,0,0,0,0,0,0,0,0,0,0,0,0,0,0]
["Técnico Superior de Saúde",0,0,0,0,0,0,0,0,0,0,0,0,0,0,0,0,0,0,0,0,0,0,0,0,0]
[null,{"$f":"SUBTOTAL(109,$B$6:$B$20)","v":0},{"$f":"SUBTOTAL(109,$C$6:$C$20)","v":0},{"$f":"SUBTOTAL(109,$D$6:$D$20)","v":0},{"$f":"SUBTOTAL(109,$E$6:$E$20)","v":0},{"$f":"SUBTOTAL(109,$F$6:$F$20)","v":0},{"$f":"SUBTOTAL(109,$G$6:$G$20)","v":0},{"$f":"SUBTOTAL(109,$H$6:$H$20)","v":0},{"$f":"SUBTOTAL(109,$I$6:$I$20)","v":0},{"$f":"SUBTOTAL(109,$J$6:$J$20)","v":0},{"$f":"SUBTOTAL(109,$K$6:$K$20)","v":0},{"$f":"SUBTOTAL(109,$L$6:$L$20)","v":0},{"$f":"SUBTOTAL(109,$M$6:$M$20)","v":0},{"$f":"SUBTOTAL(109,$N$6:$N$20)","v":0},{"$f":"SUBTOTAL(109,$O$6:$O$20)","v":0},{"$f":"SUBTOTAL(109,$P$6:$P$20)","v":0},{"$f":"SUBTOTAL(109,$Q$6:$Q$20)","v":0},{"$f":"SUBTOTAL(109,$R$6:$R$20)","v":0},{"$f":"SUBTOTAL(109,$S$6:$S$20)","v":0},{"$f":"SUBTOTAL(109,$T$6:$T$20)","v":0},{"$f":"SUBTOTAL(109,$U$6:$U$20)","v":0},{"$f":"SUBTOTAL(109,$V$6:$V$20)","v":0},{"$f":"SUBTOTAL(109,$W$6:$W$20)","v":0},{"$f":"SUBTOTAL(109,$X$6:$X$20)","v":0},{"$f":"SUBTOTAL(109,$Y$6:$Y$20)","v":0},{"$f":"SUBTOTAL(109,$Z$6:$Z$20)","v":0}]

{"sheet":"Quadro 9","index":8,"n_rows":21,"n_cols":32,"rows_kept":21,"cut":false,"hidden":false,"merged":[[3,27,3,28],[3,29,3,30],[3,31,4,31],[0,0,0,31],[1,0,1,31],[3,0,4,0],[3,1,3,2],[3,3,3,4],[3,5,3,6],[3,7,3,8],[3,9,3,10],[3,11,3,12],[3,13,3,14],[3,15,3,16],[3,17,3,18],[3,19,3,20],[3,21,3,22],[3,23,3,24],[3,25,3,26]]}
["Balanço social 2025","Balanço social 2025","Balanço social 2025","Balanço social 2025","Balanço social 2025","Balanço social 2025","Balanço social 2025","Balanço social 2025","Balanço social 2025","Balanço social 2025","Balanço social 2025","Balanço social 2025","Balanço social 2025","Balanço social 2025","Balanço social 2025","Balanço social 2025","Balanço social 2025","Balanço social 2025","Balanço social 2025","Balanço social 2025","Balanço social 2025","Balanço social 2025","Balanço social 2025","Balanço social 2025","Balanço social 2025","Balanço social 2025","Balanço social 2025","Balanço social 2025","Balanço social 2025","Balanço social 2025","Balanço social 2025","Balanço social 2025"]
["Quadro 9: Contagem das saídas de trabalhadores contratados, por grupo/cargo/carreira, segundo o motivo de saída e género","Quadro 9: Contagem das saídas de trabalhadores contratados, por grupo/cargo/carreira, segundo o motivo de saída e género","Quadro 9: Contagem das saídas de trabalhadores contratados, por grupo/cargo/carreira, segundo o motivo de saída e género","Quadro 9: Contagem das saídas de trabalhadores contratados, por grupo/cargo/carreira, segundo o motivo de saída e género","Quadro 9: Contagem das saídas de trabalhadores contratados, por grupo/cargo/carreira, segundo o motivo de saída e género","Quadro 9: Contagem das saídas de trabalhadores contratados, por grupo/cargo/carreira, segundo o motivo de saída e género","Quadro 9: Contagem das saídas de trabalhadores contratados, por grupo/cargo/carreira, segundo o motivo de saída e género","Quadro 9: Contagem das saídas de trabalhadores contratados, por grupo/cargo/carreira, segundo o motivo de saída e género","Quadro 9: Contagem das saídas de trabalhadores contratados, por grupo/cargo/carreira, segundo o motivo de saída e género","Quadro 9: Contagem das saídas de trabalhadores contratados, por grupo/cargo/carreira, segundo o motivo de saída e género","Quadro 9: Contagem das saídas de trabalhadores contratados, por grupo/cargo/carreira, segundo o motivo de saída e género","Quadro 9: Contagem das saídas de trabalhadores contratados, por grupo/cargo/carreira, segundo o motivo de saída e género","Quadro 9: Contagem das saídas de trabalhadores contratados, por grupo/cargo/carreira, segundo o motivo de saída e género","Quadro 9: Contagem das saídas de trabalhadores contratados, por grupo/cargo/carreira, segundo o motivo de saída e género","Quadro 9: Contagem das saídas de trabalhadores contratados, por grupo/cargo/carreira, segundo o motivo de saída e género","Quadro 9: Contagem das saídas de trabalhadores contratados, por grupo/cargo/carreira, segundo o motivo de saída e género","Quadro 9: Contagem das saídas de trabalhadores contratados, por grupo/cargo/carreira, segundo o motivo de saída e género","Quadro 9: Contagem das saídas de trabalhadores contratados, por grupo/cargo/carreira, segundo o motivo de saída e género","Quadro 9: Contagem das saídas de trabalhadores contratados, por grupo/cargo/carreira, segundo o motivo de saída e género","Quadro 9: Contagem das saídas de trabalhadores contratados, por grupo/cargo/carreira, segundo o motivo de saída e género","Quadro 9: Contagem das saídas de trabalhadores contratados, por grupo/cargo/carreira, segundo o motivo de saída e género","Quadro 9: Contagem das saídas de trabalhadores contratados, por grupo/cargo/carreira, segundo o motivo de saída e género","Quadro 9: Contagem das saídas de trabalhadores contratados, por grupo/cargo/carreira, segundo o motivo de saída e género","Quadro 9: Contagem das saídas de trabalhadores contratados, por grupo/cargo/carreira, segundo o motivo de saída e género","Quadro 9: Contagem das saídas de trabalhadores contratados, por grupo/cargo/carreira, segundo o motivo de saída e género","Quadro 9: Contagem das saídas de trabalhadores contratados, por grupo/cargo/carreira, segundo o motivo de saída e género","Quadro 9: Contagem das saídas de trabalhadores contratados, por grupo/cargo/carreira, segundo o motivo de saída e género","Quadro 9: Contagem das saídas de trabalhadores contratados, por grupo/cargo/carreira, segundo o motivo de saída e género","Quadro 9: Contagem das saídas de trabalhadores contratados, por grupo/cargo/carreira, segundo o motivo de saída e género","Quadro 9: Contagem das saídas de trabalhadores contratados, por grupo/cargo/carreira, segundo o motivo de saída e género","Quadro 9: Contagem das saídas de trabalhadores contratados, por grupo/cargo/carreira, segundo o motivo de saída e género","Quadro 9: Contagem das saídas de trabalhadores contratados, por grupo/cargo/carreira, segundo o motivo de saída e género"]
[]
["Grupo/Cargo/Carreira","Morte","Morte","Caducidade (termo)","Caducidade (termo)","Reforma / Aposentação","Reforma / Aposentação","Limite de idade","Limite de idade","Conclusão sem sucesso do período experimental","Conclusão sem sucesso do período experimental","Revogação (Cessação por mútuo acordo)","Revogação (Cessação por mútuo acordo)","Resolução (por iniciativa do trabalhador)","Resolução (por iniciativa do trabalhador)","Denúncia (por iniciativa do trabalhador)","Denúncia (por iniciativa do trabalhador)","Despedimento por inadaptação","Despedimento por inadaptação","Despedimento Colectivo","Despedimento Colectivo","Despedimento por extinção do posto de trabalho","Despedimento por extinção do posto de trabalho","Mobilidade Interna","Mobilidade Interna","Cedência","Cedência","Outras Situações","Outras Situações","Total","Total","Total"]
["Grupo/Cargo/Carreira","M","F","M","F","M","F","M","F","M","F","M","F","M","F","M","F","M","F","M","F","M","F","M","F","M","F","M","F","M","F","Total"]
["Pessoal Dirigente",0,0,0,0,0,0,0,0,0,0,0,0,0,0,0,0,0,0,0,0,0,0,0,0,0,0,0,0,0,0,0]
["Dirigente superior de 2º grau",0,0,0,0,0,0,0,0,0,0,0,0,0,0,0,0,0,0,0,0,0,0,0,0,0,0,0,0,0,0,0]
["Dirigente intermédio de 1º grau",0,0,0,0,0,0,0,0,0,0,0,0,0,0,0,0,0,0,0,0,0,0,0,0,0,0,0,0,0,0,0]
["Dirigente intermédio de 2º grau",0,0,0,0,0,0,0,0,0,0,0,0,0,0,0,0,0,0,0,0,0,0,0,0,0,0,0,0,0,0,0]
["Dirigente intermédio de 3º grau e seguintes",0,0,0,0,0,0,0,0,0,0,0,0,0,0,0,0,0,0,0,0,0,0,0,0,0,0,0,0,0,0,0]
["Técnico Superior",0,0,0,0,0,0,0,0,0,0,0,0,0,0,0,0,0,0,0,0,0,0,0,0,0,0,0,0,0,0,0]
["Assistente técnico, técnico de nível intermédio, pessoal administrativo",0,0,0,0,0,0,0,0,0,0,0,0,0,0,0,0,0,0,0,0,0,0,0,0,0,0,0,0,0,0,0]
["Assistente operacional, operário, auxiliar",0,0,0,0,0,0,0,0,0,0,0,0,0,0,0,0,0,0,0,0,0,0,0,0,0,0,0,0,0,0,0]
["Informático",0,0,0,0,0,0,0,0,0,0,0,0,0,0,0,0,0,0,0,0,0,0,0,0,0,0,0,0,0,0,0]
["Pessoal de Inspecção",0,0,0,0,0,0,0,0,0,0,0,0,0,0,0,0,0,0,0,0,0,0,0,0,0,0,0,0,0,0,0]
["Educ.Infância e Doc. do Ens. Básico e Secundário",0,0,0,0,0,0,0,0,0,0,0,0,0,0,0,0,0,0,0,0,0,0,0,0,0,0,0,0,0,0,0]
["Médico",0,0,0,0,0,0,0,0,0,0,0,0,0,0,0,0,0,0,0,0,0,0,0,0,0,0,0,0,0,0,0]
["Enfermeiro",0,0,0,0,0,0,0,0,0,0,0,0,0,0,0,0,0,0,0,0,0,0,0,0,0,0,0,0,0,0,0]
["Téc. Diagnóstico e Terapêutica",0,0,0,0,0,0,0,0,0,0,0,0,0,0,0,0,0,0,0,0,0,0,0,0,0,0,0,0,0,0,0]
["Técnico Superior de Saúde",0,0,0,0,0,0,0,0,0,0,0,0,0,0,0,0,0,0,0,0,0,0,0,0,0,0,0,0,0,0,0]
[null,{"$f":"SUBTOTAL(109,$B$6:$B$20)","v":0},{"$f":"SUBTOTAL(109,$C$6:$C$20)","v":0},{"$f":"SUBTOTAL(109,$D$6:$D$20)","v":0},{"$f":"SUBTOTAL(109,$E$6:$E$20)","v":0},{"$f":"SUBTOTAL(109,$F$6:$F$20)","v":0},{"$f":"SUBTOTAL(109,$G$6:$G$20)","v":0},{"$f":"SUBTOTAL(109,$H$6:$H$20)","v":0},{"$f":"SUBTOTAL(109,$I$6:$I$20)","v":0},{"$f":"SUBTOTAL(109,$J$6:$J$20)","v":0},{"$f":"SUBTOTAL(109,$K$6:$K$20)","v":0},{"$f":"SUBTOTAL(109,$L$6:$L$20)","v":0},{"$f":"SUBTOTAL(109,$M$6:$M$20)","v":0},{"$f":"SUBTOTAL(109,$N$6:$N$20)","v":0},{"$f":"SUBTOTAL(109,$O$6:$O$20)","v":0},{"$f":"SUBTOTAL(109,$P$6:$P$20)","v":0},{"$f":"SUBTOTAL(109,$Q$6:$Q$20)","v":0},{"$f":"SUBTOTAL(109,$R$6:$R$20)","v":0},{"$f":"SUBTOTAL(109,$S$6:$S$20)","v":0},{"$f":"SUBTOTAL(109,$T$6:$T$20)","v":0},{"$f":"SUBTOTAL(109,$U$6:$U$20)","v":0},{"$f":"SUBTOTAL(109,$V$6:$V$20)","v":0},{"$f":"SUBTOTAL(109,$W$6:$W$20)","v":0},{"$f":"SUBTOTAL(109,$X$6:$X$20)","v":0},{"$f":"SUBTOTAL(109,$Y$6:$Y$20)","v":0},{"$f":"SUBTOTAL(109,$Z$6:$Z$20)","v":0},{"$f":"SUBTOTAL(109,$AA$6:$AA$20)","v":0},{"$f":"SUBTOTAL(109,$AB$6:$AB$20)","v":0},{"$f":"SUBTOTAL(109,$AC$6:$AC$20)","v":0},{"$f":"SUBTOTAL(109,$AD$6:$AD$20)","v":0},{"$f":"SUBTOTAL(109,$AE$6:$AE$20)","v":0},{"$f":"SUBTOTAL(109,$AF$6:$AF$20)","v":0}]

{"sheet":"Quadro 10","index":9,"n_rows":20,"n_cols":7,"rows_kept":20,"cut":false,"hidden":false,"merged":[[0,0,0,6],[1,0,1,6]]}
["Balanço social 2025","Balanço social 2025","Balanço social 2025","Balanço social 2025","Balanço social 2025","Balanço social 2025","Balanço social 2025"]
["Quadro 10: Contagem dos postos de trabalho previstos e não ocupados durante o ano, por grupo/cargo/carreira, segundo a dificuldade de recutamento","Quadro 10: Contagem dos postos de trabalho previstos e não ocupados durante o ano, por grupo/cargo/carreira, segundo a dificuldade de recutamento","Quadro 10: Contagem dos postos de trabalho previstos e não ocupados durante o ano, por grupo/cargo/carreira, segundo a dificuldade de recutamento","Quadro 10: Contagem dos postos de trabalho previstos e não ocupados durante o ano, por grupo/cargo/carreira, segundo a dificuldade de recutamento","Quadro 10: Contagem dos postos de trabalho previstos e não ocupados durante o ano, por grupo/cargo/carreira, segundo a dificuldade de recutamento","Quadro 10: Contagem dos postos de trabalho previstos e não ocupados durante o ano, por grupo/cargo/carreira, segundo a dificuldade de recutamento","Quadro 10: Contagem dos postos de trabalho previstos e não ocupados durante o ano, por grupo/cargo/carreira, segundo a dificuldade de recutamento"]
[]
["Grupo/Cargo/Carreira","Não abertura de Procedimento Concursal","Impugnação do Procedimento Concursal","Falta de autorização da Entidade Competente","Procedimento Concursal improcedente","Procedimento Concursal em desenvolvimento","Total"]
["Pessoal Dirigente",0,0,0,0,0,0]
["Dirigente superior de 2º grau",0,0,0,0,0,0]
["Dirigente intermédio de 1º grau",0,0,0,0,0,0]
["Dirigente intermédio de 2º grau",0,0,0,0,0,0]
["Dirigente intermédio de 3º grau e seguintes",0,0,0,0,0,0]
["Técnico Superior",0,0,0,0,0,0]
["Assistente técnico, técnico de nível intermédio, pessoal administrativo",0,0,0,0,0,0]
["Assistente operacional, operário, auxiliar",0,0,0,0,0,0]
["Informático",0,0,0,0,0,0]
["Pessoal de Inspecção",0,0,0,0,0,0]
["Educ.Infância e Doc. do Ens. Básico e Secundário",0,0,0,0,0,0]
["Médico",0,0,0,0,0,0]
["Enfermeiro",0,0,0,0,0,0]
["Téc. Diagnóstico e Terapêutica",0,0,0,0,0,0]
["Técnico Superior de Saúde",0,0,0,0,0,0]
[null,{"$f":"SUBTOTAL(109,$B$5:$B$19)","v":0},{"$f":"SUBTOTAL(109,$C$5:$C$19)","v":0},{"$f":"SUBTOTAL(109,$D$5:$D$19)","v":0},{"$f":"SUBTOTAL(109,$E$5:$E$19)","v":0},{"$f":"SUBTOTAL(109,$F$5:$F$19)","v":0},{"$f":"SUBTOTAL(109,$G$5:$G$19)","v":0}]

{"sheet":"Quadro 11","index":10,"n_rows":21,"n_cols":14,"rows_kept":21,"cut":false,"hidden":false,"merged":[[0,0,0,13],[1,0,1,13],[3,0,4,0],[3,1,3,2],[3,3,3,4],[3,5,3,6],[3,7,3,8],[3,9,3,10],[3,11,3,12],[3,13,4,13]]}
["Balanço social 2025","Balanço social 2025","Balanço social 2025","Balanço social 2025","Balanço social 2025","Balanço social 2025","Balanço social 2025","Balanço social 2025","Balanço social 2025","Balanço social 2025","Balanço social 2025","Balanço social 2025","Balanço social 2025","Balanço social 2025"]
["Quadro 11: Contagem das mudanças de situação dos trabalhadores, por grupo/cargo/carreira, segundo o motivo e género","Quadro 11: Contagem das mudanças de situação dos trabalhadores, por grupo/cargo/carreira, segundo o motivo e género","Quadro 11: Contagem das mudanças de situação dos trabalhadores, por grupo/cargo/carreira, segundo o motivo e género","Quadro 11: Contagem das mudanças de situação dos trabalhadores, por grupo/cargo/carreira, segundo o motivo e género","Quadro 11: Contagem das mudanças de situação dos trabalhadores, por grupo/cargo/carreira, segundo o motivo e género","Quadro 11: Contagem das mudanças de situação dos trabalhadores, por grupo/cargo/carreira, segundo o motivo e género","Quadro 11: Contagem das mudanças de situação dos trabalhadores, por grupo/cargo/carreira, segundo o motivo e género","Quadro 11: Contagem das mudanças de situação dos trabalhadores, por grupo/cargo/carreira, segundo o motivo e género","Quadro 11: Contagem das mudanças de situação dos trabalhadores, por grupo/cargo/carreira, segundo o motivo e género","Quadro 11: Contagem das mudanças de situação dos trabalhadores, por grupo/cargo/carreira, segundo o motivo e género","Quadro 11: Contagem das mudanças de situação dos trabalhadores, por grupo/cargo/carreira, segundo o motivo e género","Quadro 11: Contagem das mudanças de situação dos trabalhadores, por grupo/cargo/carreira, segundo o motivo e género","Quadro 11: Contagem das mudanças de situação dos trabalhadores, por grupo/cargo/carreira, segundo o motivo e género","Quadro 11: Contagem das mudanças de situação dos trabalhadores, por grupo/cargo/carreira, segundo o motivo e género"]
[]
["Grupo/Cargo/Carreira","Promoções","Promoções","Alteração obrigatória do posicionamento remuneratório","Alteração obrigatória do posicionamento remuneratório","Alteração do posicionamento remuneratório por opção gestionária","Alteração do posicionamento remuneratório por opção gestionária","Procedimento concursal","Procedimento concursal","Consolidação da mobilidade na categoria","Consolidação da mobilidade na categoria","Total","Total","Total"]
["Grupo/Cargo/Carreira","M","F","M","F","M","F","M","F","M","F","M","F","Total"]
["Pessoal Dirigente",0,0,0,0,0,0,0,0,0,0,0,0,0]
["Dirigente superior de 2º grau",0,0,0,0,0,0,0,0,0,0,0,0,0]
["Dirigente intermédio de 1º grau",0,0,0,0,0,0,0,0,0,0,0,0,0]
["Dirigente intermédio de 2º grau",0,0,0,0,0,0,0,0,0,0,0,0,0]
["Dirigente intermédio de 3º grau e seguintes",0,0,0,0,0,0,0,0,0,0,0,0,0]
["Técnico Superior",0,0,0,0,0,0,0,0,0,0,0,0,0]
["Assistente técnico, técnico de nível intermédio, pessoal administrativo",0,0,0,0,0,0,0,0,0,0,0,0,0]
["Assistente operacional, operário, auxiliar",0,0,0,0,0,0,0,0,0,0,0,0,0]
["Informático",0,0,0,0,0,0,0,0,0,0,0,0,0]
["Pessoal de Inspecção",0,0,1,0,0,0,0,0,0,0,1,0,1]
["Educ.Infância e Doc. do Ens. Básico e Secundário",0,0,0,0,0,0,0,0,0,0,0,0,0]
["Médico",0,0,0,0,0,0,0,0,0,0,0,0,0]
["Enfermeiro",0,0,0,0,0,0,0,0,0,0,0,0,0]
["Téc. Diagnóstico e Terapêutica",0,0,0,0,0,0,0,0,0,0,0,0,0]
["Técnico Superior de Saúde",0,0,0,0,0,0,0,0,0,0,0,0,0]
[null,{"$f":"SUBTOTAL(109,$B$6:$B$20)","v":0},{"$f":"SUBTOTAL(109,$C$6:$C$20)","v":0},{"$f":"SUBTOTAL(109,$D$6:$D$20)","v":1},{"$f":"SUBTOTAL(109,$E$6:$E$20)","v":0},{"$f":"SUBTOTAL(109,$F$6:$F$20)","v":0},{"$f":"SUBTOTAL(109,$G$6:$G$20)","v":0},{"$f":"SUBTOTAL(109,$H$6:$H$20)","v":0},{"$f":"SUBTOTAL(109,$I$6:$I$20)","v":0},{"$f":"SUBTOTAL(109,$J$6:$J$20)","v":0},{"$f":"SUBTOTAL(109,$K$6:$K$20)","v":0},{"$f":"SUBTOTAL(109,$L$6:$L$20)","v":1},{"$f":"SUBTOTAL(109,$M$6:$M$20)","v":0},{"$f":"SUBTOTAL(109,$N$6:$N$20)","v":1}]

{"sheet":"Quadro 12","index":11,"n_rows":21,"n_cols":18,"rows_kept":21,"cut":false,"hidden":false,"merged":[[0,0,0,17],[1,0,1,17],[3,0,4,0],[3,1,3,2],[3,3,3,4],[3,5,3,6],[3,7,3,8],[3,9,3,10],[3,11,3,12],[3,13,3,14],[3,15,3,16],[3,17,4,17]]}
["Balanço social 2025","Balanço social 2025","Balanço social 2025","Balanço social 2025","Balanço social 2025","Balanço social 2025","Balanço social 2025","Balanço social 2025","Balanço social 2025","Balanço social 2025","Balanço social 2025","Balanço social 2025","Balanço social 2025","Balanço social 2025","Balanço social 2025","Balanço social 2025","Balanço social 2025","Balanço social 2025"]
["Quadro 12: Contagem dos por grupo/cargo/carreira, segundo a modalidade de horário e género","Quadro 12: Contagem dos por grupo/cargo/carreira, segundo a modalidade de horário e género","Quadro 12: Contagem dos por grupo/cargo/carreira, segundo a modalidade de horário e género","Quadro 12: Contagem dos por grupo/cargo/carreira, segundo a modalidade de horário e género","Quadro 12: Contagem dos por grupo/cargo/carreira, segundo a modalidade de horário e género","Quadro 12: Contagem dos por grupo/cargo/carreira, segundo a modalidade de horário e género","Quadro 12: Contagem dos por grupo/cargo/carreira, segundo a modalidade de horário e género","Quadro 12: Contagem dos por grupo/cargo/carreira, segundo a modalidade de horário e género","Quadro 12: Contagem dos por grupo/cargo/carreira, segundo a modalidade de horário e género","Quadro 12: Contagem dos por grupo/cargo/carreira, segundo a modalidade de horário e género","Quadro 12: Contagem dos por grupo/cargo/carreira, segundo a modalidade de horário e género","Quadro 12: Contagem dos por grupo/cargo/carreira, segundo a modalidade de horário e género","Quadro 12: Contagem dos por grupo/cargo/carreira, segundo a modalidade de horário e género","Quadro 12: Contagem dos por grupo/cargo/carreira, segundo a modalidade de horário e género","Quadro 12: Contagem dos por grupo/cargo/carreira, segundo a modalidade de horário e género","Quadro 12: Contagem dos por grupo/cargo/carreira, segundo a modalidade de horário e género","Quadro 12: Contagem dos por grupo/cargo/carreira, segundo a modalidade de horário e género","Quadro 12: Contagem dos por grupo/cargo/carreira, segundo a modalidade de horário e género"]
[]
["Grupo/Cargo/Carreira","Rígido","Rígido","Flexível","Flexível","Desfasado","Desfasado","Jornada contínua","Jornada contínua","Trabalho por turnos","Trabalho por turnos","Específico","Específico","Isenção de horário","Isenção de horário","Total","Total","Total"]
["Grupo/Cargo/Carreira","M","F","M","F","M","F","M","F","M","F","M","F","M","F","M","F","Total"]
["Pessoal Dirigente",0,0,0,0,0,0,0,0,0,0,0,0,0,2,0,2,2]
["Dirigente superior de 2º grau",0,0,0,0,0,0,0,0,0,0,0,0,0,0,0,0,0]
["Dirigente intermédio de 1º grau",0,0,0,0,0,0,0,0,0,0,0,0,0,0,0,0,0]
["Dirigente intermédio de 2º grau",0,0,0,0,0,0,0,0,0,0,0,0,0,0,0,0,0]
["Dirigente intermédio de 3º grau e seguintes",0,0,0,0,0,0,0,0,0,0,0,0,0,0,0,0,0]
["Técnico Superior",0,0,0,1,0,0,0,0,0,0,0,0,0,0,0,1,1]
["Assistente técnico, técnico de nível intermédio, pessoal administrativo",0,0,0,1,0,0,0,0,0,0,0,0,0,0,0,1,1]
["Assistente operacional, operário, auxiliar",0,0,0,0,0,0,0,0,0,0,0,0,0,0,0,0,0]
["Informático",0,0,0,0,0,0,0,0,0,0,0,0,0,0,0,0,0]
["Pessoal de Inspecção",0,0,3,3,0,0,0,0,0,0,0,0,0,0,3,3,6]
["Educ.Infância e Doc. do Ens. Básico e Secundário",0,0,0,0,0,0,0,0,0,0,0,0,0,0,0,0,0]
["Médico",0,0,0,0,0,0,0,0,0,0,0,0,0,0,0,0,0]
["Enfermeiro",0,0,0,0,0,0,0,0,0,0,0,0,0,0,0,0,0]
["Téc. Diagnóstico e Terapêutica",0,0,0,0,0,0,0,0,0,0,0,0,0,0,0,0,0]
["Técnico Superior de Saúde",0,0,0,0,0,0,0,0,0,0,0,0,0,0,0,0,0]
[null,{"$f":"SUBTOTAL(109,$B$6:$B$20)","v":0},{"$f":"SUBTOTAL(109,$C$6:$C$20)","v":0},{"$f":"SUBTOTAL(109,$D$6:$D$20)","v":3},{"$f":"SUBTOTAL(109,$E$6:$E$20)","v":5},{"$f":"SUBTOTAL(109,$F$6:$F$20)","v":0},{"$f":"SUBTOTAL(109,$G$6:$G$20)","v":0},{"$f":"SUBTOTAL(109,$H$6:$H$20)","v":0},{"$f":"SUBTOTAL(109,$I$6:$I$20)","v":0},{"$f":"SUBTOTAL(109,$J$6:$J$20)","v":0},{"$f":"SUBTOTAL(109,$K$6:$K$20)","v":0},{"$f":"SUBTOTAL(109,$L$6:$L$20)","v":0},{"$f":"SUBTOTAL(109,$M$6:$M$20)","v":0},{"$f":"SUBTOTAL(109,$N$6:$N$20)","v":0},{"$f":"SUBTOTAL(109,$O$6:$O$20)","v":2},{"$f":"SUBTOTAL(109,$P$6:$P$20)","v":3},{"$f":"SUBTOTAL(109,$Q$6:$Q$20)","v":7},{"$f":"SUBTOTAL(109,$R$6:$R$20)","v":10}]

{"sheet":"Quadro 13","index":12,"n_rows":22,"n_cols":16,"rows_kept":22,"cut":false,"hidden":false,"merged":[[0,0,0,15],[1,0,1,15],[3,0,5,0],[3,1,3,6],[3,7,3,12],[3,13,4,14],[3,15,5,15],[4,1,4,2],[4,3,4,4],[4,5,4,6],[4,7,4,8],[4,9,4,10],[4,11,4,12]]}
["Balanço social 2025","Balanço social 2025","Balanço social 2025","Balanço social 2025","Balanço social 2025","Balanço social 2025","Balanço social 2025","Balanço social 2025","Balanço social 2025","Balanço social 2025","Balanço social 2025","Balanço social 2025","Balanço social 2025","Balanço social 2025","Balanço social 2025","Balanço social 2025"]
["Quadro 13: Contagem dos trabalhadores, por grupo/cargo/carreira, segundo o período normal de trabalho (PNT) e género","Quadro 13: Contagem dos trabalhadores, por grupo/cargo/carreira, segundo o período normal de trabalho (PNT) e género","Quadro 13: Contagem dos trabalhadores, por grupo/cargo/carreira, segundo o período normal de trabalho (PNT) e género","Quadro 13: Contagem dos trabalhadores, por grupo/cargo/carreira, segundo o período normal de trabalho (PNT) e género","Quadro 13: Contagem dos trabalhadores, por grupo/cargo/carreira, segundo o período normal de trabalho (PNT) e género","Quadro 13: Contagem dos trabalhadores, por grupo/cargo/carreira, segundo o período normal de trabalho (PNT) e género","Quadro 13: Contagem dos trabalhadores, por grupo/cargo/carreira, segundo o período normal de trabalho (PNT) e género","Quadro 13: Contagem dos trabalhadores, por grupo/cargo/carreira, segundo o período normal de trabalho (PNT) e género","Quadro 13: Contagem dos trabalhadores, por grupo/cargo/carreira, segundo o período normal de trabalho (PNT) e género","Quadro 13: Contagem dos trabalhadores, por grupo/cargo/carreira, segundo o período normal de trabalho (PNT) e género","Quadro 13: Contagem dos trabalhadores, por grupo/cargo/carreira, segundo o período normal de trabalho (PNT) e género","Quadro 13: Contagem dos trabalhadores, por grupo/cargo/carreira, segundo o período normal de trabalho (PNT) e género","Quadro 13: Contagem dos trabalhadores, por grupo/cargo/carreira, segundo o período normal de trabalho (PNT) e género","Quadro 13: Contagem dos trabalhadores, por grupo/cargo/carreira, segundo o período normal de trabalho (PNT) e género","Quadro 13: Contagem dos trabalhadores, por grupo/cargo/carreira, segundo o período normal de trabalho (PNT) e género","Quadro 13: Contagem dos trabalhadores, por grupo/cargo/carreira, segundo o período normal de trabalho (PNT) e género"]
[]
["Grupo/Cargo/Carreira","Tempo Completo ","Tempo Completo ","Tempo Completo ","Tempo Completo ","Tempo Completo ","Tempo Completo ","PNT inferior ao praticado a tempo completo ","PNT inferior ao praticado a tempo completo ","PNT inferior ao praticado a tempo completo ","PNT inferior ao praticado a tempo completo ","PNT inferior ao praticado a tempo completo ","PNT inferior ao praticado a tempo completo ","Total","Total","Total"]
["Grupo/Cargo/Carreira"," 35 horas"," 35 horas"," 40 horas"," 40 horas"," 42 horas"," 42 horas"," Semana de 4 dias"," Semana de 4 dias"," Regime especial"," Regime especial"," Outros"," Outros","Total","Total","Total"]
["Grupo/Cargo/Carreira","M","F","M","F","M","F","M","F","M","F","M","F","M","F","Total"]
["Pessoal Dirigente",0,0,0,0,0,0,0,0,0,0,0,2,0,2,2]
["Dirigente superior de 2º grau",0,0,0,0,0,0,0,0,0,0,0,0,0,0,0]
["Dirigente intermédio de 1º grau",0,0,0,0,0,0,0,0,0,0,0,0,0,0,0]
["Dirigente intermédio de 2º grau",0,0,0,0,0,0,0,0,0,0,0,0,0,0,0]
["Dirigente intermédio de 3º grau e seguintes",0,0,0,0,0,0,0,0,0,0,0,0,0,0,0]
["Técnico Superior",0,1,0,0,0,0,0,0,0,0,0,0,0,1,1]
["Assistente técnico, técnico de nível intermédio, pessoal administrativo",0,1,0,0,0,0,0,0,0,0,0,0,0,1,1]
["Assistente operacional, operário, auxiliar",0,0,0,0,0,0,0,0,0,0,0,0,0,0,0]
["Informático",0,0,0,0,0,0,0,0,0,0,0,0,0,0,0]
["Pessoal de Inspecção",2,3,0,0,0,0,0,0,0,0,1,0,3,3,6]
["Educ.Infância e Doc. do Ens. Básico e Secundário",0,0,0,0,0,0,0,0,0,0,0,0,0,0,0]
["Médico",0,0,0,0,0,0,0,0,0,0,0,0,0,0,0]
["Enfermeiro",0,0,0,0,0,0,0,0,0,0,0,0,0,0,0]
["Téc. Diagnóstico e Terapêutica",0,0,0,0,0,0,0,0,0,0,0,0,0,0,0]
["Técnico Superior de Saúde",0,0,0,0,0,0,0,0,0,0,0,0,0,0,0]
[null,{"$f":"SUBTOTAL(109,$B$7:$B$21)","v":2},{"$f":"SUBTOTAL(109,$C$7:$C$21)","v":5},{"$f":"SUBTOTAL(109,$D$7:$D$21)","v":0},{"$f":"SUBTOTAL(109,$E$7:$E$21)","v":0},{"$f":"SUBTOTAL(109,$F$7:$F$21)","v":0},{"$f":"SUBTOTAL(109,$G$7:$G$21)","v":0},{"$f":"SUBTOTAL(109,$H$7:$H$21)","v":0},{"$f":"SUBTOTAL(109,$I$7:$I$21)","v":0},{"$f":"SUBTOTAL(109,$J$7:$J$21)","v":0},{"$f":"SUBTOTAL(109,$K$7:$K$21)","v":0},{"$f":"SUBTOTAL(109,$L$7:$L$21)","v":1},{"$f":"SUBTOTAL(109,$M$7:$M$21)","v":2},{"$f":"SUBTOTAL(109,$N$7:$N$21)","v":3},{"$f":"SUBTOTAL(109,$O$7:$O$21)","v":7},{"$f":"SUBTOTAL(109,$P$7:$P$21)","v":10}]

{"sheet":"Quadro 14","index":13,"n_rows":21,"n_cols":14,"rows_kept":21,"cut":false,"hidden":false,"merged":[[0,0,0,13],[1,0,1,13],[3,0,4,0],[3,1,3,2],[3,3,3,4],[3,5,3,6],[3,7,3,8],[3,9,3,10],[3,11,3,12],[3,13,4,13]]}
["Balanço social 2025","Balanço social 2025","Balanço social 2025","Balanço social 2025","Balanço social 2025","Balanço social 2025","Balanço social 2025","Balanço social 2025","Balanço social 2025","Balanço social 2025","Balanço social 2025","Balanço social 2025","Balanço social 2025","Balanço social 2025"]
["Quadro 14: Contagem das horas de trabalho extraordinário, por grupo/cargo/carreira, segundo a modalidade de prestação do trabalho e género","Quadro 14: Contagem das horas de trabalho extraordinário, por grupo/cargo/carreira, segundo a modalidade de prestação do trabalho e género","Quadro 14: Contagem das horas de trabalho extraordinário, por grupo/cargo/carreira, segundo a modalidade de prestação do trabalho e género","Quadro 14: Contagem das horas de trabalho extraordinário, por grupo/cargo/carreira, segundo a modalidade de prestação do trabalho e género","Quadro 14: Contagem das horas de trabalho extraordinário, por grupo/cargo/carreira, segundo a modalidade de prestação do trabalho e género","Quadro 14: Contagem das horas de trabalho extraordinário, por grupo/cargo/carreira, segundo a modalidade de prestação do trabalho e género","Quadro 14: Contagem das horas de trabalho extraordinário, por grupo/cargo/carreira, segundo a modalidade de prestação do trabalho e género","Quadro 14: Contagem das horas de trabalho extraordinário, por grupo/cargo/carreira, segundo a modalidade de prestação do trabalho e género","Quadro 14: Contagem das horas de trabalho extraordinário, por grupo/cargo/carreira, segundo a modalidade de prestação do trabalho e género","Quadro 14: Contagem das horas de trabalho extraordinário, por grupo/cargo/carreira, segundo a modalidade de prestação do trabalho e género","Quadro 14: Contagem das horas de trabalho extraordinário, por grupo/cargo/carreira, segundo a modalidade de prestação do trabalho e género","Quadro 14: Contagem das horas de trabalho extraordinário, por grupo/cargo/carreira, segundo a modalidade de prestação do trabalho e género","Quadro 14: Contagem das horas de trabalho extraordinário, por grupo/cargo/carreira, segundo a modalidade de prestação do trabalho e género","Quadro 14: Contagem das horas de trabalho extraordinário, por grupo/cargo/carreira, segundo a modalidade de prestação do trabalho e género"]
[]
["Grupo/Cargo/Carreira","Trabalho extraordinário diurno","Trabalho extraordinário diurno","Trabalho extraordinário nocturno","Trabalho extraordinário nocturno","Trabalho em dias de descanso semanal obrigatório","Trabalho em dias de descanso semanal obrigatório","Trabalho em dias de descanso semanal complementar","Trabalho em dias de descanso semanal complementar","Trabalho em dias feriados","Trabalho em dias feriados","Total","Total","Total"]
["Grupo/Cargo/Carreira","M","F","M","F","M","F","M","F","M","F","M","F","Total"]
["Pessoal Dirigente",0,0,0,0,0,0,0,0,0,0,0,0,0]
["Dirigente superior de 2º grau",0,0,0,0,0,0,0,0,0,0,0,0,0]
["Dirigente intermédio de 1º grau",0,0,0,0,0,0,0,0,0,0,0,0,0]
["Dirigente intermédio de 2º grau",0,0,0,0,0,0,0,0,0,0,0,0,0]
["Dirigente intermédio de 3º grau e seguintes",0,0,0,0,0,0,0,0,0,0,0,0,0]
["Técnico Superior",0,0,0,0,0,0,0,0,0,0,0,0,0]
["Assistente técnico, técnico de nível intermédio, pessoal administrativo",0,0,0,0,0,0,0,0,0,0,0,0,0]
["Assistente operacional, operário, auxiliar",0,0,0,0,0,0,0,0,0,0,0,0,0]
["Informático",0,0,0,0,0,0,0,0,0,0,0,0,0]
["Pessoal de Inspecção",0,0,0,0,0,0,0,0,0,0,0,0,0]
["Educ.Infância e Doc. do Ens. Básico e Secundário",0,0,0,0,0,0,0,0,0,0,0,0,0]
["Médico",0,0,0,0,0,0,0,0,0,0,0,0,0]
["Enfermeiro",0,0,0,0,0,0,0,0,0,0,0,0,0]
["Téc. Diagnóstico e Terapêutica",0,0,0,0,0,0,0,0,0,0,0,0,0]
["Técnico Superior de Saúde",0,0,0,0,0,0,0,0,0,0,0,0,0]
[null,{"$f":"SUBTOTAL(109,$B$6:$B$20)","v":0},{"$f":"SUBTOTAL(109,$C$6:$C$20)","v":0},{"$f":"SUBTOTAL(109,$D$6:$D$20)","v":0},{"$f":"SUBTOTAL(109,$E$6:$E$20)","v":0},{"$f":"SUBTOTAL(109,$F$6:$F$20)","v":0},{"$f":"SUBTOTAL(109,$G$6:$G$20)","v":0},{"$f":"SUBTOTAL(109,$H$6:$H$20)","v":0},{"$f":"SUBTOTAL(109,$I$6:$I$20)","v":0},{"$f":"SUBTOTAL(109,$J$6:$J$20)","v":0},{"$f":"SUBTOTAL(109,$K$6:$K$20)","v":0},{"$f":"SUBTOTAL(109,$L$6:$L$20)","v":0},{"$f":"SUBTOTAL(109,$M$6:$M$20)","v":0},{"$f":"SUBTOTAL(109,$N$6:$N$20)","v":0}]

{"sheet":"Quadro 14.1","index":14,"n_rows":21,"n_cols":8,"rows_kept":21,"cut":false,"hidden":false,"merged":[[0,0,0,7],[1,0,1,7],[3,0,4,0],[3,1,3,2],[3,3,3,4],[3,5,3,6],[3,7,4,7]]}
["Balanço social 2025","Balanço social 2025","Balanço social 2025","Balanço social 2025","Balanço social 2025","Balanço social 2025","Balanço social 2025","Balanço social 2025"]
["Quadro 14.1: Contagem das horas de trabalho nocturno, normal e extraordinário, por grupo/cargo/carreira, segundo o género","Quadro 14.1: Contagem das horas de trabalho nocturno, normal e extraordinário, por grupo/cargo/carreira, segundo o género","Quadro 14.1: Contagem das horas de trabalho nocturno, normal e extraordinário, por grupo/cargo/carreira, segundo o género","Quadro 14.1: Contagem das horas de trabalho nocturno, normal e extraordinário, por grupo/cargo/carreira, segundo o género","Quadro 14.1: Contagem das horas de trabalho nocturno, normal e extraordinário, por grupo/cargo/carreira, segundo o género","Quadro 14.1: Contagem das horas de trabalho nocturno, normal e extraordinário, por grupo/cargo/carreira, segundo o género","Quadro 14.1: Contagem das horas de trabalho nocturno, normal e extraordinário, por grupo/cargo/carreira, segundo o género","Quadro 14.1: Contagem das horas de trabalho nocturno, normal e extraordinário, por grupo/cargo/carreira, segundo o género"]
[]
["Grupo/Cargo/Carreira","Trabalho noturno normal","Trabalho noturno normal","Trabalho noturno extraordinário","Trabalho noturno extraordinário","Total","Total","Total"]
["Grupo/Cargo/Carreira","M","F","M","F","M","F","Total"]
["Pessoal Dirigente",0,0,0,0,0,0,0]
["Dirigente superior de 2º grau",0,0,0,0,0,0,0]
["Dirigente intermédio de 1º grau",0,0,0,0,0,0,0]
["Dirigente intermédio de 2º grau",0,0,0,0,0,0,0]
["Dirigente intermédio de 3º grau e seguintes",0,0,0,0,0,0,0]
["Técnico Superior",0,0,0,0,0,0,0]
["Assistente técnico, técnico de nível intermédio, pessoal administrativo",0,0,0,0,0,0,0]
["Assistente operacional, operário, auxiliar",0,0,0,0,0,0,0]
["Informático",0,0,0,0,0,0,0]
["Pessoal de Inspecção",0,0,0,0,0,0,0]
["Educ.Infância e Doc. do Ens. Básico e Secundário",0,0,0,0,0,0,0]
["Médico",0,0,0,0,0,0,0]
["Enfermeiro",0,0,0,0,0,0,0]
["Téc. Diagnóstico e Terapêutica",0,0,0,0,0,0,0]
["Técnico Superior de Saúde",0,0,0,0,0,0,0]
[null,{"$f":"SUBTOTAL(109,$B$6:$B$20)","v":0},{"$f":"SUBTOTAL(109,$C$6:$C$20)","v":0},{"$f":"SUBTOTAL(109,$D$6:$D$20)","v":0},{"$f":"SUBTOTAL(109,$E$6:$E$20)","v":0},{"$f":"SUBTOTAL(109,$F$6:$F$20)","v":0},{"$f":"SUBTOTAL(109,$G$6:$G$20)","v":0},{"$f":"SUBTOTAL(109,$H$6:$H$20)","v":0}]

{"sheet":"Quadro 15","index":15,"n_rows":21,"n_cols":30,"rows_kept":21,"cut":false,"hidden":false,"merged":[[3,27,3,28],[3,29,4,29],[0,0,0,29],[1,0,1,29],[3,0,4,0],[3,1,3,2],[3,3,3,4],[3,5,3,6],[3,7,3,8],[3,9,3,10],[3,11,3,12],[3,13,3,14],[3,15,3,16],[3,17,3,18],[3,19,3,20],[3,21,3,22],[3,23,3,24],[3,25,3,26]]}
["Balanço social 2025","Balanço social 2025","Balanço social 2025","Balanço social 2025","Balanço social 2025","Balanço social 2025","Balanço social 2025","Balanço social 2025","Balanço social 2025","Balanço social 2025","Balanço social 2025","Balanço social 2025","Balanço social 2025","Balanço social 2025","Balanço social 2025","Balanço social 2025","Balanço social 2025","Balanço social 2025","Balanço social 2025","Balanço social 2025","Balanço social 2025","Balanço social 2025","Balanço social 2025","Balanço social 2025","Balanço social 2025","Balanço social 2025","Balanço social 2025","Balanço social 2025","Balanço social 2025","Balanço social 2025"]
["Quadro 15: Contagem dos dias de ausências ao trabalho durante o ano, grupo/cargo/carreira, segundo o motivo de ausência e género","Quadro 15: Contagem dos dias de ausências ao trabalho durante o ano, grupo/cargo/carreira, segundo o motivo de ausência e género","Quadro 15: Contagem dos dias de ausências ao trabalho durante o ano, grupo/cargo/carreira, segundo o motivo de ausência e género","Quadro 15: Contagem dos dias de ausências ao trabalho durante o ano, grupo/cargo/carreira, segundo o motivo de ausência e género","Quadro 15: Contagem dos dias de ausências ao trabalho durante o ano, grupo/cargo/carreira, segundo o motivo de ausência e género","Quadro 15: Contagem dos dias de ausências ao trabalho durante o ano, grupo/cargo/carreira, segundo o motivo de ausência e género","Quadro 15: Contagem dos dias de ausências ao trabalho durante o ano, grupo/cargo/carreira, segundo o motivo de ausência e género","Quadro 15: Contagem dos dias de ausências ao trabalho durante o ano, grupo/cargo/carreira, segundo o motivo de ausência e género","Quadro 15: Contagem dos dias de ausências ao trabalho durante o ano, grupo/cargo/carreira, segundo o motivo de ausência e género","Quadro 15: Contagem dos dias de ausências ao trabalho durante o ano, grupo/cargo/carreira, segundo o motivo de ausência e género","Quadro 15: Contagem dos dias de ausências ao trabalho durante o ano, grupo/cargo/carreira, segundo o motivo de ausência e género","Quadro 15: Contagem dos dias de ausências ao trabalho durante o ano, grupo/cargo/carreira, segundo o motivo de ausência e género","Quadro 15: Contagem dos dias de ausências ao trabalho durante o ano, grupo/cargo/carreira, segundo o motivo de ausência e género","Quadro 15: Contagem dos dias de ausências ao trabalho durante o ano, grupo/cargo/carreira, segundo o motivo de ausência e género","Quadro 15: Contagem dos dias de ausências ao trabalho durante o ano, grupo/cargo/carreira, segundo o motivo de ausência e género","Quadro 15: Contagem dos dias de ausências ao trabalho durante o ano, grupo/cargo/carreira, segundo o motivo de ausência e género","Quadro 15: Contagem dos dias de ausências ao trabalho durante o ano, grupo/cargo/carreira, segundo o motivo de ausência e género","Quadro 15: Contagem dos dias de ausências ao trabalho durante o ano, grupo/cargo/carreira, segundo o motivo de ausência e género","Quadro 15: Contagem dos dias de ausências ao trabalho durante o ano, grupo/cargo/carreira, segundo o motivo de ausência e género","Quadro 15: Contagem dos dias de ausências ao trabalho durante o ano, grupo/cargo/carreira, segundo o motivo de ausência e género","Quadro 15: Contagem dos dias de ausências ao trabalho durante o ano, grupo/cargo/carreira, segundo o motivo de ausência e género","Quadro 15: Contagem dos dias de ausências ao trabalho durante o ano, grupo/cargo/carreira, segundo o motivo de ausência e género","Quadro 15: Contagem dos dias de ausências ao trabalho durante o ano, grupo/cargo/carreira, segundo o motivo de ausência e género","Quadro 15: Contagem dos dias de ausências ao trabalho durante o ano, grupo/cargo/carreira, segundo o motivo de ausência e género","Quadro 15: Contagem dos dias de ausências ao trabalho durante o ano, grupo/cargo/carreira, segundo o motivo de ausência e género","Quadro 15: Contagem dos dias de ausências ao trabalho durante o ano, grupo/cargo/carreira, segundo o motivo de ausência e género","Quadro 15: Contagem dos dias de ausências ao trabalho durante o ano, grupo/cargo/carreira, segundo o motivo de ausência e género","Quadro 15: Contagem dos dias de ausências ao trabalho durante o ano, grupo/cargo/carreira, segundo o motivo de ausência e género","Quadro 15: Contagem dos dias de ausências ao trabalho durante o ano, grupo/cargo/carreira, segundo o motivo de ausência e género","Quadro 15: Contagem dos dias de ausências ao trabalho durante o ano, grupo/cargo/carreira, segundo o motivo de ausência e género"]
[]
["Grupo/Cargo/Carreira","Casamento","Casamento","Protecção na parentalidade","Protecção na parentalidade","Falecimento de Familiar","Falecimento de Familiar","Doença","Doença","Acidente em serviço ou doença profissional","Acidente em serviço ou doença profissional","Assistência a familiares","Assistência a familiares","Trabalhador-estudante","Trabalhador-estudante","Por conta do período de férias","Por conta do período de férias","Comperda de vencimento","Comperda de vencimento","Cumprimento de pena disciplinar","Cumprimento de pena disciplinar","Greve","Greve","Injustificadas","Injustificadas","Outros","Outros","Total","Total","Total"]
["Grupo/Cargo/Carreira","M","F","M","F","M","F","M","F","M","F","M","F","M","F","M","F","M","F","M","F","M","F","M","F","M","F","M","F","Total"]
["Pessoal Dirigente",0,15,0,0,0,0,0,0,0,0,0,0,0,0,0,6.5,0,0,0,0,0,0,0,0,0,6,0,27.5,27.5]
["Dirigente superior de 2º grau",0,0,0,0,0,0,0,0,0,0,0,0,0,0,0,0,0,0,0,0,0,0,0,0,0,0,0,0,0]
["Dirigente intermédio de 1º grau",0,0,0,0,0,0,0,0,0,0,0,0,0,0,0,0,0,0,0,0,0,0,0,0,0,0,0,0,0]
["Dirigente intermédio de 2º grau",0,0,0,0,0,0,0,0,0,0,0,0,0,0,0,0,0,0,0,0,0,0,0,0,0,0,0,0,0]
["Dirigente intermédio de 3º grau e seguintes",0,0,0,0,0,0,0,0,0,0,0,0,0,0,0,0,0,0,0,0,0,0,0,0,0,0,0,0,0]
["Técnico Superior",0,0,0,0,0,0,0,0,0,0,0,0,0,0,0,3.5,0,0,0,0,0,1,0,0,0,2,0,6.5,6.5]
["Assistente técnico, técnico de nível intermédio, pessoal administrativo",0,0,0,19,0,0,0,17,0,0,0,0,0,0,0,0,0,0,0,0,0,0,0,0,0,5,0,41,41]
["Assistente operacional, operário, auxiliar",0,0,0,0,0,0,0,0,0,0,0,0,0,0,0,0,0,0,0,0,0,0,0,0,0,0,0,0,0]
["Informático",0,0,0,0,0,0,0,0,0,0,0,0,0,0,0,0,0,0,0,0,0,0,0,0,0,0,0,0,0]
["Pessoal de Inspecção",0,0,8,166,2,0,306,0,0,0,10,0,0,0,4,4.5,0,0,0,0,1,1,0,0,15,0,346,171.5,517.5]
["Educ.Infância e Doc. do Ens. Básico e Secundário",0,0,0,0,0,0,0,0,0,0,0,0,0,0,0,0,0,0,0,0,0,0,0,0,0,0,0,0,0]
["Médico",0,0,0,0,0,0,0,0,0,0,0,0,0,0,0,0,0,0,0,0,0,0,0,0,0,0,0,0,0]
["Enfermeiro",0,0,0,0,0,0,0,0,0,0,0,0,0,0,0,0,0,0,0,0,0,0,0,0,0,0,0,0,0]
["Téc. Diagnóstico e Terapêutica",0,0,0,0,0,0,0,0,0,0,0,0,0,0,0,0,0,0,0,0,0,0,0,0,0,0,0,0,0]
["Técnico Superior de Saúde",0,0,0,0,0,0,0,0,0,0,0,0,0,0,0,0,0,0,0,0,0,0,0,0,0,0,0,0,0]
[null,{"$f":"SUBTOTAL(109,$B$6:$B$20)","v":0},{"$f":"SUBTOTAL(109,$C$6:$C$20)","v":15},{"$f":"SUBTOTAL(109,$D$6:$D$20)","v":8},{"$f":"SUBTOTAL(109,$E$6:$E$20)","v":185},{"$f":"SUBTOTAL(109,$F$6:$F$20)","v":2},{"$f":"SUBTOTAL(109,$G$6:$G$20)","v":0},{"$f":"SUBTOTAL(109,$H$6:$H$20)","v":306},{"$f":"SUBTOTAL(109,$I$6:$I$20)","v":17},{"$f":"SUBTOTAL(109,$J$6:$J$20)","v":0},{"$f":"SUBTOTAL(109,$K$6:$K$20)","v":0},{"$f":"SUBTOTAL(109,$L$6:$L$20)","v":10},{"$f":"SUBTOTAL(109,$M$6:$M$20)","v":0},{"$f":"SUBTOTAL(109,$N$6:$N$20)","v":0},{"$f":"SUBTOTAL(109,$O$6:$O$20)","v":0},{"$f":"SUBTOTAL(109,$P$6:$P$20)","v":4},{"$f":"SUBTOTAL(109,$Q$6:$Q$20)","v":14.5},{"$f":"SUBTOTAL(109,$R$6:$R$20)","v":0},{"$f":"SUBTOTAL(109,$S$6:$S$20)","v":0},{"$f":"SUBTOTAL(109,$T$6:$T$20)","v":0},{"$f":"SUBTOTAL(109,$U$6:$U$20)","v":0},{"$f":"SUBTOTAL(109,$V$6:$V$20)","v":1},{"$f":"SUBTOTAL(109,$W$6:$W$20)","v":2},{"$f":"SUBTOTAL(109,$X$6:$X$20)","v":0},{"$f":"SUBTOTAL(109,$Y$6:$Y$20)","v":0},{"$f":"SUBTOTAL(109,$Z$6:$Z$20)","v":15},{"$f":"SUBTOTAL(109,$AA$6:$AA$20)","v":13},{"$f":"SUBTOTAL(109,$AB$6:$AB$20)","v":346},{"$f":"SUBTOTAL(109,$AC$6:$AC$20)","v":246.5},{"$f":"SUBTOTAL(109,$AD$6:$AD$20)","v":592.5}]

{"sheet":"Quadro 16","index":16,"n_rows":13,"n_cols":4,"rows_kept":13,"cut":false,"hidden":false,"merged":[[0,0,0,3],[1,0,1,3],[3,0,3,3],[4,1,4,2],[5,1,5,2],[5,3,6,3]]}
["Balanço social 2025","Balanço social 2025","Balanço social 2025","Balanço social 2025"]
["Quadro 16: Contagem dos trabalhadores em greve, por escalão de PNT e tempo de paralisação","Quadro 16: Contagem dos trabalhadores em greve, por escalão de PNT e tempo de paralisação","Quadro 16: Contagem dos trabalhadores em greve, por escalão de PNT e tempo de paralisação","Quadro 16: Contagem dos trabalhadores em greve, por escalão de PNT e tempo de paralisação"]
[]
["Identificação da greve","Identificação da greve","Identificação da greve","Identificação da greve"]
["Data","Âmbito","Âmbito","Motivo(s) da greve"]
["","","","Lista de motivos"]
["PNT","Nº de trabalhadores em greve","Duração da paralisação (em hh/mm)","Lista de motivos"]
["35 horas",0,0]
["40 horas",0,0]
["42 horas",0,0]
["Trabalho a tempo parcial",0,0]
["Outros",0,0]
["Total",0,0]

{"sheet":"Quadro 17","index":17,"n_rows":32,"n_cols":4,"rows_kept":32,"cut":false,"hidden":false,"merged":[[0,0,0,3],[1,0,1,3]]}
["Balanço social 2025","Balanço social 2025","Balanço social 2025","Balanço social 2025"]
["Quadro 17: Estrutura remuneratória, por género","Quadro 17: Estrutura remuneratória, por género","Quadro 17: Estrutura remuneratória, por género","Quadro 17: Estrutura remuneratória, por género"]
[]
["Género / Escalão de remunerações","Masculino","Feminino","Total"]
["Até 500",0,0,0]
["501-1000",0,0,0]
["1001-1250",0,0,0]
["1251-1500",0,1,1]
["1501-1750",0,0,0]
["1751-2000",2,3,5]
["2001-2250",1,0,1]
["2251-2500",0,0,0]
["2501-2750",0,0,0]
["2751-3000",0,1,1]
["3001-3250",0,0,0]
["3251-3500",0,0,0]
["3501-3750",0,1,1]
["3751-4000",0,0,0]
["4001-4250",0,1,1]
["4251-4500",0,0,0]
["4501-4750",0,0,0]
["4751-5000",0,0,0]
["5001-5250",0,0,0]
["5251-5500",0,0,0]
["5501-5750",0,0,0]
["5751-6000",0,0,0]
["Mais de 6000",0,0,0]
[null,{"$f":"SUBTOTAL(109,$B$5:$B$27)","v":3},{"$f":"SUBTOTAL(109,$C$5:$C$27)","v":7},{"$f":"SUBTOTAL(109,$D$5:$D$27)","v":10}]
[]
["Remuneração","Masculino","Feminino"]
["Mínima",1885.37,1473.02]
["Máximo",2080.4699999999998,4122.1099999999997]

{"sheet":"Quadro 18","index":18,"n_rows":57,"n_cols":2,"rows_kept":57,"cut":false,"hidden":false,"merged":[[0,0,0,1],[11,0,11,1],[30,0,30,1],[46,0,46,1]]}
["Quadro 18: Total dos encargos com pessoal durante o ano","Quadro 18: Total dos encargos com pessoal durante o ano"]
[]
["Encargos com pessoal","Valor"]
["Remuneração base",256526.07999999999]
["Prémios de desempenho",0]
["Suplementos remuneratórios",12395.69]
["Prestações sociais",9331.51]
["Benefícios sociais",0]
["Outros encargos",58730.73]
[null,{"$f":"SUBTOTAL(109,$B$4:$B$9)","v":336984.00999999995}]
[]
["Quadro 18.1: Encargos com suplementos remuneratórios","Quadro 18.1: Encargos com suplementos remuneratórios"]
[]
["Suplementos remuneratórios","Valor"]
["Trabalho extraordinário (diurno e noturno)",0]
["Trabalho normal noturno",0]
["Trabalho em dias de descanso semanal, complementar e feriados",0]
["Disponibilidade permanente",0]
["Outros regimes especiais de prestação de trabalho",0]
["Risco, penosidade e insalubridade",0]
["Fixação na periferia",0]
["Trabalho por turnos",0]
["Abono para falhas",0]
["Participação em reuniões",0]
["Ajudas de custo",676.78]
["Representação",11718.91]
["Secretariado",0]
["Outros suplementos remuneratórios",0]
[null,{"$f":"SUBTOTAL(109,$B$15:$B$28)","v":12395.69}]
[]
["Quadro 18.2: Encargos com prestações sociais","Quadro 18.2: Encargos com prestações sociais"]
[]
["Prestações Sociais","Valor"]
["Subsídios no âmbito da protecção da parentalidade (maternidade, paternidade e adopção)",901.51]
["Abono de família",0]
["Subsídio de educação especial",0]
["Subsídio mensal vitalício",0]
["Subsídio para assistência de 3ª pessoa",0]
["Subsídio de funeral",0]
["Subsídio por morte",0]
["Acidente de trabalho e doença profissional",0]
["Subsídio de desempenho",0]
["Subsídio de refeição",8430]
["Outras prestações sociais (incluí pensões)",0]
[null,{"$f":"SUBTOTAL(109,$B$34:$B$44)","v":9331.51}]
[]
["Quadro 18.3: Encargos com benefícios sociais","Quadro 18.3: Encargos com benefícios sociais"]
[]
["Benefícios Sociais","Valor"]
["Grupos desportivos / casa do pessoal",0]
["Refeitórios",0]
["Subsídio de frequência de creche e de educação pré-escolar",0]
["Colónias de férias",0]
["Subsídio de estudos",0]
["Apoio socio-económico",0]
["Outros benefícios sociais",0]
[null,{"$f":"SUBTOTAL(109,$B$50:$B$56)","v":0}]

{"sheet":"Quadro 27","index":19,"n_rows":7,"n_cols":6,"rows_kept":7,"cut":false,"hidden":false,"merged":[[0,0,0,5],[1,0,1,5]]}
["Balanço social 2025","Balanço social 2025","Balanço social 2025","Balanço social 2025","Balanço social 2025","Balanço social 2025"]
["Quadro 27: Contagem relativa a participações em acções de formação profissional realizadas durante o ano, por tipo de acção, segundo a duração","Quadro 27: Contagem relativa a participações em acções de formação profissional realizadas durante o ano, por tipo de acção, segundo a duração","Quadro 27: Contagem relativa a participações em acções de formação profissional realizadas durante o ano, por tipo de acção, segundo a duração","Quadro 27: Contagem relativa a participações em acções de formação profissional realizadas durante o ano, por tipo de acção, segundo a duração","Quadro 27: Contagem relativa a participações em acções de formação profissional realizadas durante o ano, por tipo de acção, segundo a duração","Quadro 27: Contagem relativa a participações em acções de formação profissional realizadas durante o ano, por tipo de acção, segundo a duração"]
[]
["Tipo de acção/duração","Menos de 30 horas","De 30 a 59 horas","De 60 a 119 horas","120 horas ou mais","Total"]
["Internas",0,0,0,0,0]
["Externas",0,0,0,0,0]
[null,{"$f":"SUBTOTAL(109,$B$5:$B$6)","v":0},{"$f":"SUBTOTAL(109,$C$5:$C$6)","v":0},{"$f":"SUBTOTAL(109,$D$5:$D$6)","v":0},{"$f":"SUBTOTAL(109,$E$5:$E$6)","v":0},{"$f":"SUBTOTAL(109,$F$5:$F$6)","v":0}]

{"sheet":"Quadro 28","index":20,"n_rows":21,"n_cols":5,"rows_kept":21,"cut":false,"hidden":false,"merged":[[0,0,0,4],[1,0,1,4],[3,0,4,0],[3,3,3,4]]}
["Balanço social 2025","Balanço social 2025","Balanço social 2025","Balanço social 2025","Balanço social 2025"]
["Quadro 28: Contagem relativa a participação em acções de formação durante o ano, por grupo/cargo/carreira, segundo o tipo de acção","Quadro 28: Contagem relativa a participação em acções de formação durante o ano, por grupo/cargo/carreira, segundo o tipo de acção","Quadro 28: Contagem relativa a participação em acções de formação durante o ano, por grupo/cargo/carreira, segundo o tipo de acção","Quadro 28: Contagem relativa a participação em acções de formação durante o ano, por grupo/cargo/carreira, segundo o tipo de acção","Quadro 28: Contagem relativa a participação em acções de formação durante o ano, por grupo/cargo/carreira, segundo o tipo de acção"]
[]
["Grupo/Cargo/Carreira","Ações internas","Ações externas","Total","Total"]
["Grupo/Cargo/Carreira","Nº de participações","Nº de participações","Nº de participações","Nº de participantes"]
["Pessoal Dirigente",0,0,0,0]
["Dirigente superior de 2º grau",0,0,0,0]
["Dirigente intermédio de 1º grau",0,0,0,0]
["Dirigente intermédio de 2º grau",0,0,0,0]
["Dirigente intermédio de 3º grau e seguintes",0,0,0,0]
["Técnico Superior",0,0,0,0]
["Assistente técnico, técnico de nível intermédio, pessoal administrativo",0,0,0,0]
["Assistente operacional, operário, auxiliar",0,0,0,0]
["Informático",0,0,0,0]
["Pessoal de Inspecção",0,0,0,0]
["Educ.Infância e Doc. do Ens. Básico e Secundário",0,0,0,0]
["Médico",0,0,0,0]
["Enfermeiro",0,0,0,0]
["Téc. Diagnóstico e Terapêutica",0,0,0,0]
["Técnico Superior de Saúde",0,0,0,0]
[null,{"$f":"SUBTOTAL(109,$B$6:$B$20)","v":0},{"$f":"SUBTOTAL(109,$C$6:$C$20)","v":0},{"$f":"SUBTOTAL(109,$D$6:$D$20)","v":0},{"$f":"SUBTOTAL(109,$E$6:$E$20)","v":0}]

{"sheet":"Quadro 29","index":21,"n_rows":20,"n_cols":4,"rows_kept":20,"cut":false,"hidden":false,"merged":[[0,0,0,3],[1,0,1,3]]}
["Balanço social 2025","Balanço social 2025","Balanço social 2025","Balanço social 2025"]
["Quadro 29: Contagem das horas dispendidas em formação durante o ano, por grupo/cargo/carreira, segundo  o tipo de acção","Quadro 29: Contagem das horas dispendidas em formação durante o ano, por grupo/cargo/carreira, segundo  o tipo de acção","Quadro 29: Contagem das horas dispendidas em formação durante o ano, por grupo/cargo/carreira, segundo  o tipo de acção","Quadro 29: Contagem das horas dispendidas em formação durante o ano, por grupo/cargo/carreira, segundo  o tipo de acção"]
[]
["Grupo/Cargo/Carreira","Horas dispendidas em acções internas","Horas dispendidas em acções externas","Total de horas em acções de formação"]
["Pessoal Dirigente",0,0,0]
["Dirigente superior de 2º grau",0,0,0]
["Dirigente intermédio de 1º grau",0,0,0]
["Dirigente intermédio de 2º grau",0,0,0]
["Dirigente intermédio de 3º grau e seguintes",0,0,0]
["Técnico Superior",0,0,0]
["Assistente técnico, técnico de nível intermédio, pessoal administrativo",0,0,0]
["Assistente operacional, operário, auxiliar",0,0,0]
["Informático",0,0,0]
["Pessoal de Inspecção",0,0,0]
["Educ.Infância e Doc. do Ens. Básico e Secundário",0,0,0]
["Médico",0,0,0]
["Enfermeiro",0,0,0]
["Téc. Diagnóstico e Terapêutica",0,0,0]
["Técnico Superior de Saúde",0,0,0]
[null,{"$f":"SUBTOTAL(109,$B$5:$B$19)","v":0},{"$f":"SUBTOTAL(109,$C$5:$C$19)","v":0},{"$f":"SUBTOTAL(109,$D$5:$D$19)","v":0}]

{"sheet":"Quadro 30","index":22,"n_rows":7,"n_cols":2,"rows_kept":7,"cut":false,"hidden":false,"merged":[[0,0,0,1],[1,0,1,1]]}
["Balanço social 2025","Balanço social 2025"]
["Quadro 30: Despesas anuais com a formação","Quadro 30: Despesas anuais com a formação"]
[]
["Tipo de acção/valor","Valor (Euros)"]
["Despesa com acções internas",0]
["Despesa com acções externas",0]
[null,{"$f":"SUBTOTAL(109,$B$5:$B$6)","v":0}]

{"sheet":"Quadro 31","index":23,"n_rows":7,"n_cols":2,"rows_kept":7,"cut":false,"hidden":false,"merged":[[0,0,0,1],[1,0,1,1]]}
["Balanço social 2025","Balanço social 2025"]
["Quadro 31: Relações profissionais","Quadro 31: Relações profissionais"]
[]
["Relações profissionais","Número"]
["Trabalhadores sindicalizados",2]
["Elementos pertencentes a comissões de trabalhadores",0]
["Total de votantes para comissões de trabalhadores",0]